{"text_format":"1","workbook":"xlsx","n_sheets":10,"sheets":["1. Info","2. Table of Contents","3. Rate Classes","4. RRR Data","5. UTRs and Sub-Transmission","6. Historical Wholesale","7. Current Wholesale","8. Forecast Wholesale","9. RTSR Rates to Forecast","hidden1"],"not_rendered":{"charts":0,"images":3,"macros":1,"external_links":2,"defined_names":20,"comments":0,"pivot_tables":0},"unopened":[],"bounds":{"document_bytes":16777216,"sheet_cells":100000,"rows_first":2000,"rows_last":500,"rows_between":2000,"halvings":0,"cell_chars":16384,"cell_head_chars":4096},"cells_cut":0,"cells_raw":0,"read":"whole","date_system":"1900"}

{"sheet":"1. Info","index":0,"n_rows":74,"n_cols":28,"rows_kept":74,"cut":false,"hidden":false,"merged":[[24,3,24,4],[20,3,20,4],[1,2,1,9],[2,2,2,9],[3,2,3,9],[4,2,4,9],[14,3,14,4],[16,3,16,4]]}
[null,null,null,null,null,null,null,null,null,null,null,null,null,null,null,null,null,null,null,null,null,null,null,null,null,null,null,"Algoma Power Inc."]
[null,null,null,null,null,null,null,null,null,null,null,null,null,null,null,null,null,null,null,null,null,null,null,null,null,null,null,"Atikokan Hydro Inc."]
[null,null,null,null,null,null,null,null,null,null,null,null,null,null,null,null,null,null,null,null,null,null,null,null,null,null,null,"Attawapiskat Power Corporation"]
[null,null,null,null,null,null,null,null,null,null,null,null,null,null,null,null,null,null,null,null,null,null,null,null,null,null,null,"Bluewater Power Distribution Corporation"]
[null,null,null,null,null,null,null,null,null,null,null,null,null,null,null,null,null,null,null,null,null,null,null,null,null,null,null,"Brantford Power Inc."]
[null,null,null,null,null,null,null,null,null,null,null,null,null,null,null,null,null,null,null,null,null,null,null,null,null,null,null,"Burlington Hydro Inc."]
[null,null,null,null,null,null,null,null,null,null,null,null,null,null,null,null,null,null,null,null,null,null,null,null,null,null,null,"Canadian Niagara Power Inc."]
[null,null,null,null,null,null,null,null,null,null,null,null,null,null,null,null,null,null,null,null,null,null,null,null,null,null,null,"Centre Wellington Hydro Ltd."]
[null,null,null,null,null,null,null,null,null,null,null,null,null,null,null,null,null,null,null,null,null,null,null,null,null,null,null,"Chapleau Public Utilities Corporation"]
[null,null,null,null,null,null,null,null,null,null,null,null,null,null,null,null,null,null,null,null,null,null,null,null,null,null,null,"COLLUS PowerStream Corp."]
[null,null,null,null,null,null,null,null,null,null,null,null,null,null,null,null,null,null,null,null,null,null,null,null,null,null,null,"Cooperative Hydro Embrun Inc."]
[null,null,null,null,null,null,null,null,null,null,null,null,null,null,null,null,null,null,null,null,null,null,null,null,null,null,null,"E.L.K. Energy Inc."]
["Drop-down lists are shaded blue; Input cells are shaded green.",null,null,null,null,null,null,null,null,null,null,null,null,null,null,null,null,null,null,null,null,null,null,null,null,null,null,"Energy + Inc."]
[null,null,null,null,null,null,null,null,null,null,null,null,null,null,null,null,null,null,null,null,null,null,null,null,null,null,null,"Enersource Hydro Mississauga Inc."]
[null,null,"Utility Name   ","Oshawa PUC Networks Inc.",null,null,null,null,null,null,null,null,null,null,null,null,null,null,null,null,null,null,null,null,null,null,null,"Entegrus Powerlines Inc."]
[null,null,null,null,null,null,null,null,null,null,null,null,null,null,null,null,null,null,null,null,null,null,null,null,null,null,null,"EnWin Utilities Ltd."]
[null,null,"Service Territory","Oshawa, ON",null,null,null,null,null,null,null,null,null,null,null,null,null,null,null,null,null,null,null,null,null,null,null,"Erie Thames Powerlines Corporation"]
[null,null,null,null,null,null,null,null,null,null,null,null,null,null,null,null,null,null,null,null,null,null,null,null,null,null,null,"Espanola Regional Hydro Distribution Corporation"]
[null,null,"Assigned EB Number","EB-2014-0101",null,null,null,null,null,null,null,null,null,null,null,null,null,null,null,null,null,null,null,null,null,null,null,"Essex Powerlines Corporation"]
[null,null,null,null,null,null,null,null,null,null,null,null,null,null,null,null,null,null,null,null,null,null,null,null,null,null,null,"Festival Hydro Inc."]
[null,null,"Name and Title","David Savage",null,null,null,null,null,null,null,null,null,null,null,null,null,null,null,null,null,null,null,null,null,null,null,"Fort Albany Power Corporation"]
[null,null,null,null,null,null,null,null,null,null,null,null,null,null,null,null,null,null,null,null,null,null,null,null,null,null,null,"Fort Frances Power Corporation"]
[null,null,"Phone Number","905-723-4626 Ext.5278",null,null,null,null,null,null,null,null,null,null,null,null,null,null,null,null,null,null,null,null,null,null,null,"Greater Sudbury Hydro Inc."]
[null,null,null,null,null,null,null,null,null,null,null,null,null,null,null,null,null,null,null,null,null,null,null,null,null,null,null,"Grimsby Power Inc."]
[null,null,"Email Address","dsavage@opuc.on.ca",null,null,null,null,null,null,null,null,null,null,null,null,null,null,null,null,null,null,null,null,null,null,null,"Guelph Hydro Electric Systems Inc."]
[null,null,null,null,null,null,null,null,null,null,null,null,null,null,null,null,null,null,null,null,null,null,null,null,null,null,null,"Haldimand County Hydro Inc."]
[null,null,"Date","2017-06-26",null,null,null,null,null,null,null,null,null,null,null,null,null,null,null,null,null,null,null,null,null,null,null,"Halton Hills Hydro Inc."]
[null,null,null,null,null,null,null,null,null,null,null,null,null,null,null,null,null,null,null,null,null,null,null,null,null,null,null,"Hearst Power Distribution Company Limited"]
[null,null,"Last COS Re-based Year",2015,null,null,null,null,null,null,null,null,null,null,null,null,null,null,null,null,null,null,null,null,null,null,null,"Horizon Utilities Corporation"]
[null,null,null,null,null,null,null,null,null,null,null,null,null,null,null,null,null,null,null,null,null,null,null,null,null,null,null,"Hydro 2000 Inc."]
[null,null,null,null,null,null,null,null,null,null,null,null,null,null,null,null,null,null,null,null,null,null,null,null,null,null,null,"Hydro Hawkesbury Inc."]
[null,null,null,null,null,null,null,null,null,null,null,null,null,null,null,null,null,null,null,null,null,null,null,null,null,null,null,"Hydro One Brampton Networks Inc."]
[null,null,null,null,null,null,null,null,null,null,null,null,null,null,null,null,null,null,null,null,null,null,null,null,null,null,null,"Hydro One Networks Inc."]
[null,null,null,null,null,null,null,null,null,null,null,null,null,null,null,null,null,null,null,null,null,null,null,null,null,null,null,"Hydro One Remote Communities Inc."]
[null,null,null,null,null,null,null,null,null,null,null,null,null,null,null,null,null,null,null,null,null,null,null,null,null,null,null,"Hydro Ottawa Limited"]
[null,null,null,null,null,null,null,null,null,null,null,null,null,null,null,null,null,null,null,null,null,null,null,null,null,null,null,"Innpower Corporation"]
[null,null,null,null,null,null,null,null,null,null,null,null,null,null,null,null,null,null,null,null,null,null,null,null,null,null,null,"Kashechewan Power Corporation"]
[null,null,null,null,null,null,null,null,null,null,null,null,null,null,null,null,null,null,null,null,null,null,null,null,null,null,null,"Kenora Hydro Electric Corporation Ltd."]
[null,null,null,null,null,null,null,null,null,null,null,null,null,null,null,null,null,null,null,null,null,null,null,null,null,null,null,"Kingston Hydro Corporation"]
[null,null,null,null,null,null,null,null,null,null,null,null,null,null,null,null,null,null,null,null,null,null,null,null,null,null,null,"Kitchener-Wilmot Hydro Inc."]
[null,null,null,null,null,null,null,null,null,null,null,null,null,null,null,null,null,null,null,null,null,null,null,null,null,null,null,"Lakefront Utilities Inc."]
[null,null,null,null,null,null,null,null,null,null,null,null,null,null,null,null,null,null,null,null,null,null,null,null,null,null,null,"Lakeland Power Distribution Ltd."]
[null,null,null,null,null,null,null,null,null,null,null,null,null,null,null,null,null,null,null,null,null,null,null,null,null,null,null,"London Hydro Inc."]
[null,null,null,null,null,null,null,null,null,null,null,null,null,null,null,null,null,null,null,null,null,null,null,null,null,null,null,"Midland Power Utility Corporation"]
[null,null,null,null,null,null,null,null,null,null,null,null,null,null,null,null,null,null,null,null,null,null,null,null,null,null,null,"Milton Hydro Distribution Inc."]
[null,null,null,null,null,null,null,null,null,null,null,null,null,null,null,null,null,null,null,null,null,null,null,null,null,null,null,"Newmarket-Tay Power Distribution Ltd."]
[null,null,null,null,null,null,null,null,null,null,null,null,null,null,null,null,null,null,null,null,null,null,null,null,null,null,null,"Niagara Peninsula Energy Inc."]
[null,null,null,null,null,null,null,null,null,null,null,null,null,null,null,null,null,null,null,null,null,null,null,null,null,null,null,"Niagara-on-the-Lake Hydro Inc."]
[null,null,null,null,null,null,null,null,null,null,null,null,null,null,null,null,null,null,null,null,null,null,null,null,null,null,null,"North Bay Hydro Distribution Limited"]
[null,null,null,null,null,null,null,null,null,null,null,null,null,null,null,null,null,null,null,null,null,null,null,null,null,null,null,"Northern Ontario Wires Inc."]
[null,null,null,null,null,null,null,null,null,null,null,null,null,null,null,null,null,null,null,null,null,null,null,null,null,null,null,"Oakville Hydro Electricity Distribution Inc."]
[null,null,null,null,null,null,null,null,null,null,null,null,null,null,null,null,null,null,null,null,null,null,null,null,null,null,null,"Orangeville Hydro Limited"]
[null,null,null,null,null,null,null,null,null,null,null,null,null,null,null,null,null,null,null,null,null,null,null,null,null,null,null,"Orillia Power Distribution Corporation"]
[null,null,null,null,null,null,null,null,null,null,null,null,null,null,null,null,null,null,null,null,null,null,null,null,null,null,null,"Oshawa PUC Networks Inc."]
[null,null,null,null,null,null,null,null,null,null,null,null,null,null,null,null,null,null,null,null,null,null,null,null,null,null,null,"Ottawa River Power Corporation"]
[null,null,null,null,null,null,null,null,null,null,null,null,null,null,null,null,null,null,null,null,null,null,null,null,null,null,null,"Peterborough Distribution Incorporated"]
[null,null,null,null,null,null,null,null,null,null,null,null,null,null,null,null,null,null,null,null,null,null,null,null,null,null,null,"PowerStream Inc."]
[null,null,null,null,null,null,null,null,null,null,null,null,null,null,null,null,null,null,null,null,null,null,null,null,null,null,null,"PUC Distribution Inc."]
[null,null,null,null,null,null,null,null,null,null,null,null,null,null,null,null,null,null,null,null,null,null,null,null,null,null,null,"Renfrew Hydro Inc."]
[null,null,null,null,null,null,null,null,null,null,null,null,null,null,null,null,null,null,null,null,null,null,null,null,null,null,null,"Rideau St. Lawrence Distribution Inc."]
[null,null,null,null,null,null,null,null,null,null,null,null,null,null,null,null,null,null,null,null,null,null,null,null,null,null,null,"Sioux Lookout Hydro Inc."]
[null,null,null,null,null,null,null,null,null,null,null,null,null,null,null,null,null,null,null,null,null,null,null,null,null,null,null,"St. Thomas Energy Inc."]
[null,null,null,null,null,null,null,null,null,null,null,null,null,null,null,null,null,null,null,null,null,null,null,null,null,null,null,"Thunder Bay Hydro Electricity Distribution Inc."]
[null,null,null,null,null,null,null,null,null,null,null,null,null,null,null,null,null,null,null,null,null,null,null,null,null,null,null,"Tillsonburg Hydro Inc."]
[null,null,null,null,null,null,null,null,null,null,null,null,null,null,null,null,null,null,null,null,null,null,null,null,null,null,null,"Toronto Hydro-Electric System Limited"]
[null,null,null,null,null,null,null,null,null,null,null,null,null,null,null,null,null,null,null,null,null,null,null,null,null,null,null,"Veridian Connections Inc."]
[null,null,null,null,null,null,null,null,null,null,null,null,null,null,null,null,null,null,null,null,null,null,null,null,null,null,null,"Wasaga Distribution Inc."]
[null,null,null,null,null,null,null,null,null,null,null,null,null,null,null,null,null,null,null,null,null,null,null,null,null,null,null,"Waterloo North Hydro Inc."]
[null,null,null,null,null,null,null,null,null,null,null,null,null,null,null,null,null,null,null,null,null,null,null,null,null,null,null,"Welland Hydro-Electric System Corp."]
[null,null,null,null,null,null,null,null,null,null,null,null,null,null,null,null,null,null,null,null,null,null,null,null,null,null,null,"Wellington North Power Inc."]
[null,null,null,null,null,null,null,null,null,null,null,null,null,null,null,null,null,null,null,null,null,null,null,null,null,null,null,"West Coast Huron Energy Inc."]
[null,null,null,null,null,null,null,null,null,null,null,null,null,null,null,null,null,null,null,null,null,null,null,null,null,null,null,"Westario Power Inc."]
[null,null,null,null,null,null,null,null,null,null,null,null,null,null,null,null,null,null,null,null,null,null,null,null,null,null,null,"Whitby Hydro Electric Corporation"]
[null,null,null,null,null,null,null,null,null,null,null,null,null,null,null,null,null,null,null,null,null,null,null,null,null,null,null,"Woodstock Hydro Services Inc."]

{"sheet":"2. Table of Contents","index":1,"n_rows":28,"n_cols":9,"rows_kept":28,"cut":false,"hidden":false,"merged":[]}
[]
[]
[]
[]
[]
[]
[]
[]
[]
[]
[]
[]
[]
[]
[]
[]
[]
[]
[]
[null,null,null,"1. Info",null,null,null,null,"6. Historical Wholesale"]
[]
[null,null,null,"2. Table of Contents",null,null,null,null,"7. Current Wholesale"]
[]
[null,null,null,"3. Rate Classes",null,null,null,null,"8. Forecast Wholesale"]
[]
[null,null,null,"4. RRR Data",null,null,null,null,"9. RTSR Rates to Forecast"]
[]
[null,null,null,"5. UTRs and Sub-Transmission"]

{"sheet":"3. Rate Classes","index":2,"n_rows":100,"n_cols":23,"rows_kept":100,"cut":false,"hidden":false,"merged":[[12,2,12,8]]}
[]
[]
[]
[]
[]
[]
[]
[]
[]
[]
[]
[]
[null,null,"1.  Select the appropriate rate classes that appear on your most recent Board-Approved Tariff of Rates and Charges.\n2.  Enter the RTS Network and Connection Rate as it appears on the Tariff of Rates and Charges"]
[]
[null,null,"Rate Class",null,"Unit",null,"RTSR-Network",null,"RTSR-Connection"]
[]
[null,null,"Residential",null,"kWh",null,7.4000000000000003E-3,null,6.1999999999999998E-3,null,null,{"$f":"IF(OR(ISBLANK(C17), ISERROR(FIND(\"Choose\", C17))=FALSE), 0, 1)","v":1},{"$f":"\"C\" & ROW(C17)","v":"C17"},{"$f":"IF(OR(C17=\"General Service Intermediate Rate Class 1,000 To 4,999 kW (formerly General Service > 50 kW Customers)\", C17=\"General Service Intermediate Rate Class 1,000 To 4,999 kW (formerly Large Use Customers)\"), \"x\", \"\")","v":""},null,null,null,null,null,null,null,null,"Choose Rate Class"]
[null,null,"General Service Less Than 50 kW",null,"kWh",null,6.8999999999999999E-3,null,5.7000000000000002E-3,null,null,1,"C18",{"$f":"IF(OR(C18=\"General Service Intermediate Rate Class 1,000 To 4,999 kW (formerly General Service > 50 kW Customers)\", C18=\"General Service Intermediate Rate Class 1,000 To 4,999 kW (formerly Large Use Customers)\"), \"x\", \"\")","v":""},null,null,null,null,null,null,null,null,"Residential"]
[null,null,"General Service 50 to 999 kW",null,"kW",null,2.4961000000000002,null,2.0068999999999999,null,null,1,"C19","",null,null,null,null,null,null,null,null,"Residential Regular"]
[null,null,"General Service 50 to 999 kW - Interval Metered",null,"kW",null,3.1993,null,2.5493999999999999,null,null,1,"C20","",null,null,null,null,null,null,null,null,"Residential Urban"]
[null,null,"General Service 1,000 to 4,999 kW - Interval Meters",null,"kW",null,3.1993,null,2.5493999999999999,null,null,1,"C21","",null,null,null,null,null,null,null,null,"Residential Urban Year-Round"]
[null,null,"Large Use > 5000 kW",null,"kW",null,3.4089,null,2.7816999999999998,null,null,1,"C22","",null,null,null,null,null,null,null,null,"Residential Suburban"]
[null,null,"Unmetered Scattered Load",null,"kWh",null,6.8999999999999999E-3,null,5.7000000000000002E-3,null,null,1,"C23","",null,null,null,null,null,null,null,null,"Residential Suburban Seasonal"]
[null,null,"Sentinel Lighting",null,"kW",null,1.7217,null,2.3559000000000001,null,null,1,"C24","",null,null,null,null,null,null,null,null,"Residential Suburban Year Round"]
[null,null,"Street Lighting",null,"kW",null,1.6924999999999999,null,2.3159999999999998,null,null,1,"C25","",null,null,null,null,null,null,null,null,"Residential - Time of Use"]
[null,null,"Choose Rate Class",null,null,null,null,null,null,null,null,0,"C26","",null,null,null,null,null,null,null,null,"Residential - Hensall"]
[null,null,"Choose Rate Class",null,null,null,null,null,null,null,null,0,"C27","",null,null,null,null,null,null,null,null,"Residential – High Density [R1]"]
[null,null,"Choose Rate Class",null,null,null,null,null,null,null,null,0,"C28","",null,null,null,null,null,null,null,null,"Residential – Normal Density [R2]"]
[null,null,"Choose Rate Class",null,null,null,null,null,null,null,null,0,"C29","",null,null,null,null,null,null,null,null,"Seasonal Residential – High Density [R3]"]
[null,null,"Choose Rate Class",null,null,null,null,null,null,null,null,0,"C30","",null,null,null,null,null,null,null,null,"Seasonal Residential – Normal Density [R4]"]
[null,null,"Choose Rate Class",null,null,null,null,null,null,null,null,0,"C31","",null,null,null,null,null,null,null,null,"Residential – Urban [UR]"]
[null,null,"Choose Rate Class",null,null,null,null,null,null,null,null,0,"C32","",null,null,null,null,null,null,null,null,"General Service Less Than 50 kW"]
[null,null,"Choose Rate Class",null,null,null,null,null,null,null,null,0,"C33","",null,null,null,null,null,null,null,null,"General Service Less Than 50 kW – Single Phase energy-billed [G1]"]
[null,null,"Choose Rate Class",null,null,null,null,null,null,null,null,0,"C34","",null,null,null,null,null,null,null,null,"General Service Less Than 50 kW – Three Phase energy-billed [G3]"]
[null,null,"Choose Rate Class",null,null,null,null,null,null,null,null,0,"C35","",null,null,null,null,null,null,null,null,"General Service Less Than 50 kW – Transmission Class energy-billed [T]"]
[null,null,"Choose Rate Class",null,null,null,null,null,null,null,null,0,"C36","",null,null,null,null,null,null,null,null,"General Service Less Than 50 kW – Urban energy-billed [UG]"]
[null,null,"Choose Rate Class",null,null,null,null,null,null,null,null,0,"C37","",null,null,null,null,null,null,null,null,"Westport Sewage Treatment Plant"]
[null,null,"Choose Rate Class",null,null,null,null,null,null,null,null,0,"C38","",null,null,null,null,null,null,null,null,"Small Commercial and USL - per meter"]
[null,null,null,null,null,null,null,null,null,null,null,null,null,{"$f":"COUNTIF(N17:N38, \"x\")","v":0},null,null,null,null,null,null,null,null,"Small Commercial and USL - per connection"]
[null,null,null,null,null,null,null,null,null,null,null,null,null,null,null,null,null,null,null,null,null,null,"Farms – Single Phase energy-billed [F1]"]
[null,null,null,null,null,null,null,null,null,null,null,null,null,null,null,null,null,null,null,null,null,null,"General Service 50 to 499 kW"]
[null,null,null,null,null,null,null,null,null,null,null,null,null,null,null,null,null,null,null,null,null,null,"General Service 50 to 699 kW"]
[null,null,null,null,null,null,null,null,null,null,null,null,null,null,null,null,null,null,null,null,null,null,"General Service 50 to 999 kW"]
[null,null,null,null,null,null,null,null,null,null,null,null,null,null,null,null,null,null,null,null,null,null,"General Service 50 to 999 kW - Interval Metered"]
[null,null,null,null,null,null,null,null,null,null,null,null,null,null,null,null,null,null,null,null,null,null,"General Service 50 to 1,000 kW"]
[null,null,null,null,null,null,null,null,null,null,null,null,null,null,null,null,null,null,null,null,null,null,"General Service 50 to 1,000 kW - Interval Meters"]
[null,null,null,null,null,null,null,null,null,null,null,null,null,null,null,null,null,null,null,null,null,null,"General Service 50 to 1,000 kW - Non Interval Meters"]
[null,null,null,null,null,null,null,null,null,null,null,null,null,null,null,null,null,null,null,null,null,null,"General Service 50 to 1,499 kW"]
[null,null,null,null,null,null,null,null,null,null,null,null,null,null,null,null,null,null,null,null,null,null,"General Service 50 to 1,499 kW - Interval Metered"]
[null,null,null,null,null,null,null,null,null,null,null,null,null,null,null,null,null,null,null,null,null,null,"General Service  50 to 2,499 kW"]
[null,null,null,null,null,null,null,null,null,null,null,null,null,null,null,null,null,null,null,null,null,null,"General Service 50 to 2,999 kW"]
[null,null,null,null,null,null,null,null,null,null,null,null,null,null,null,null,null,null,null,null,null,null,"General Service 50 to 2,999 kW - Time of Use"]
[null,null,null,null,null,null,null,null,null,null,null,null,null,null,null,null,null,null,null,null,null,null,"General Service 50 to 4,999 kW"]
[null,null,null,null,null,null,null,null,null,null,null,null,null,null,null,null,null,null,null,null,null,null,"General Service 50 to 4,999 kW – Interval Metered"]
[null,null,null,null,null,null,null,null,null,null,null,null,null,null,null,null,null,null,null,null,null,null,"General Service 50 to 4,999 kW - Time of Use"]
[null,null,null,null,null,null,null,null,null,null,null,null,null,null,null,null,null,null,null,null,null,null,"General Service 50 to 4,999 kW (CoGeneration)"]
[null,null,null,null,null,null,null,null,null,null,null,null,null,null,null,null,null,null,null,null,null,null,"General Service 50 to 4,999 kW (formerly Time of Use)"]
[null,null,null,null,null,null,null,null,null,null,null,null,null,null,null,null,null,null,null,null,null,null,"General Service 500 to 4,999 kW"]
[null,null,null,null,null,null,null,null,null,null,null,null,null,null,null,null,null,null,null,null,null,null,"General Service 700 to 4,999 kW"]
[null,null,null,null,null,null,null,null,null,null,null,null,null,null,null,null,null,null,null,null,null,null,"General Service 1,000 to 2,999 kW"]
[null,null,null,null,null,null,null,null,null,null,null,null,null,null,null,null,null,null,null,null,null,null,"General Service 1,000 to 4,999 kW"]
[null,null,null,null,null,null,null,null,null,null,null,null,null,null,null,null,null,null,null,null,null,null,"General Service 1,000 to 4,999 kW - Interval Meters"]
[null,null,null,null,null,null,null,null,null,null,null,null,null,null,null,null,null,null,null,null,null,null,"General Service 1,000 To 4,999 kW (co-generation)"]
[null,null,null,null,null,null,null,null,null,null,null,null,null,null,null,null,null,null,null,null,null,null,"General Service Greater Than 1,000 kW"]
[null,null,null,null,null,null,null,null,null,null,null,null,null,null,null,null,null,null,null,null,null,null,"General Service Intermediate Rate Class 1,000 To 4,999 kW (formerly Large Use Customers)"]
[null,null,null,null,null,null,null,null,null,null,null,null,null,null,null,null,null,null,null,null,null,null,"General Service Intermediate Rate Class 1,000 To 4,999 kW (formerly General Service > 50 kW Customers)"]
[null,null,null,null,null,null,null,null,null,null,null,null,null,null,null,null,null,null,null,null,null,null,"General Service 1,500 to 4,999 kW"]
[null,null,null,null,null,null,null,null,null,null,null,null,null,null,null,null,null,null,null,null,null,null,"General Service Equal To Or Greater Than 1,500 kW"]
[null,null,null,null,null,null,null,null,null,null,null,null,null,null,null,null,null,null,null,null,null,null,"General Service Equal To Or Greater Than 1,500 kW - Interval Metered"]
[null,null,null,null,null,null,null,null,null,null,null,null,null,null,null,null,null,null,null,null,null,null,"General Service Intermediate 1,000 To 4,999 kW"]
[null,null,null,null,null,null,null,null,null,null,null,null,null,null,null,null,null,null,null,null,null,null,"General Service 2,500 to 4,999 kW"]
[null,null,null,null,null,null,null,null,null,null,null,null,null,null,null,null,null,null,null,null,null,null,"General Service 3,000 to 4,999 kW"]
[null,null,null,null,null,null,null,null,null,null,null,null,null,null,null,null,null,null,null,null,null,null,"General Service 3,000 to 4,999 kW - Interval Metered"]
[null,null,null,null,null,null,null,null,null,null,null,null,null,null,null,null,null,null,null,null,null,null,"General Service 3,000 to 4,999 kW - Intermediate Use"]
[null,null,null,null,null,null,null,null,null,null,null,null,null,null,null,null,null,null,null,null,null,null,"General Service 3,000 to 4,999 kW - Time of Use"]
[null,null,null,null,null,null,null,null,null,null,null,null,null,null,null,null,null,null,null,null,null,null,"Intermediate With Self Generation"]
[null,null,null,null,null,null,null,null,null,null,null,null,null,null,null,null,null,null,null,null,null,null,"General Service - Commercial"]
[null,null,null,null,null,null,null,null,null,null,null,null,null,null,null,null,null,null,null,null,null,null,"General Service - Institutional"]
[null,null,null,null,null,null,null,null,null,null,null,null,null,null,null,null,null,null,null,null,null,null,"Farms – Three Phase energy-billed [F3]"]
[null,null,null,null,null,null,null,null,null,null,null,null,null,null,null,null,null,null,null,null,null,null,"Large Use"]
[null,null,null,null,null,null,null,null,null,null,null,null,null,null,null,null,null,null,null,null,null,null,"Large Use - Regular"]
[null,null,null,null,null,null,null,null,null,null,null,null,null,null,null,null,null,null,null,null,null,null,"Large Use > 5000 kW"]
[null,null,null,null,null,null,null,null,null,null,null,null,null,null,null,null,null,null,null,null,null,null,"Large Use - 3TS"]
[null,null,null,null,null,null,null,null,null,null,null,null,null,null,null,null,null,null,null,null,null,null,"Large Use - Ford Annex"]
[null,null,null,null,null,null,null,null,null,null,null,null,null,null,null,null,null,null,null,null,null,null,"Unmetered Scattered Load"]
[null,null,null,null,null,null,null,null,null,null,null,null,null,null,null,null,null,null,null,null,null,null,"Sentinel Lighting"]
[null,null,null,null,null,null,null,null,null,null,null,null,null,null,null,null,null,null,null,null,null,null,"Street Lighting"]
[null,null,null,null,null,null,null,null,null,null,null,null,null,null,null,null,null,null,null,null,null,null,"Embedded Distributor"]
[null,null,null,null,null,null,null,null,null,null,null,null,null,null,null,null,null,null,null,null,null,null,"Low Voltage Wheeling Charge Rate"]
[null,null,null,null,null,null,null,null,null,null,null,null,null,null,null,null,null,null,null,null,null,null,"Stand-By"]
[null,null,null,null,null,null,null,null,null,null,null,null,null,null,null,null,null,null,null,null,null,null,"Standby Power"]
[null,null,null,null,null,null,null,null,null,null,null,null,null,null,null,null,null,null,null,null,null,null,"Standby Power – INTERIM APPROVAL"]
[null,null,null,null,null,null,null,null,null,null,null,null,null,null,null,null,null,null,null,null,null,null,"Standby Power - APPROVED ON AN INTERIM BASIS"]
[null,null,null,null,null,null,null,null,null,null,null,null,null,null,null,null,null,null,null,null,null,null,"Standby - General Service 50 - 1,000 kW"]
[null,null,null,null,null,null,null,null,null,null,null,null,null,null,null,null,null,null,null,null,null,null,"Standby Power General Service 50 to 1,499 kW"]
[null,null,null,null,null,null,null,null,null,null,null,null,null,null,null,null,null,null,null,null,null,null,"Standby - General Service 1,000 - 5,000 kW"]
[null,null,null,null,null,null,null,null,null,null,null,null,null,null,null,null,null,null,null,null,null,null,"Standby Power General Service 1,500 to 4,999 kW"]
[null,null,null,null,null,null,null,null,null,null,null,null,null,null,null,null,null,null,null,null,null,null,"Standby - Large Use"]
[null,null,null,null,null,null,null,null,null,null,null,null,null,null,null,null,null,null,null,null,null,null,"Standby Power General Service Large Use"]
[null,null,null,null,null,null,null,null,null,null,null,null,null,null,null,null,null,null,null,null,null,null,"Standby Distribution Service"]

{"sheet":"4. RRR Data","index":3,"n_rows":34,"n_cols":9,"rows_kept":34,"cut":false,"hidden":false,"merged":[[12,1,12,8]]}
[]
[]
[]
[]
[]
[]
[]
[]
[]
[]
[]
[]
[]
[]
[null,"Rate Class","Rate Description","Unit","Rate","Non-Loss Adjusted Metered kWh","Non-Loss Adjusted Metered kW","Applicable \nLoss Factor\neg: (1.0325)","Loss Adjusted Billed kWh"]
[]
[null,"Residential","RTSR - Network","kWh",7.4000000000000003E-3,477527823,null,1.0359,{"$f":"F17*H17","v":494671071.84570003}]
[null,"Residential","RTSR - Connection","kWh",6.1999999999999998E-3,477527823,null,1.0359,{"$f":"F18*H18","v":494671071.84570003}]
[null,"General Service Less Than 50 kW","RTSR - Network","kWh",6.8999999999999999E-3,131950149,null,1.0359,{"$f":"F19*H19","v":136687159.34909999}]
[null,"General Service Less Than 50 kW","RTSR - Connection","kWh",5.7000000000000002E-3,131950149,null,1.0359,{"$f":"F20*H20","v":136687159.34909999}]
[null,"General Service 50 to 999 kW","RTSR - Network","kW",2.4961000000000002,149397407,406106]
[null,"General Service 50 to 999 kW","RTSR - Connection","kW",2.0068999999999999,149397407,406106]
[null,"General Service 50 to 999 kW - Interval Metered","RTSR - Network","kW",3.1993,180090158,438263]
[null,"General Service 50 to 999 kW - Interval Metered","RTSR - Connection","kW",2.5493999999999999,180090158,438263]
[null,"General Service 1,000 to 4,999 kW - Interval Meters","RTSR - Network","kW",3.1993,83295747,200065]
[null,"General Service 1,000 to 4,999 kW - Interval Meters","RTSR - Connection","kW",2.5493999999999999,83295747,200065]
[null,"Large Use > 5000 kW","RTSR - Network","kW",3.4089,41438246,94958]
[null,"Large Use > 5000 kW","RTSR - Connection","kW",2.7816999999999998,41438246,94958]
[null,"Unmetered Scattered Load","RTSR - Network","kWh",6.8999999999999999E-3,819338,null,1.0359,{"$f":"F29*H29","v":848752.23420000006}]
[null,"Unmetered Scattered Load","RTSR - Connection","kWh",5.7000000000000002E-3,819338,null,1.0359,{"$f":"F30*H30","v":848752.23420000006}]
[null,"Sentinel Lighting","RTSR - Network","kW",1.7217,39745.85,126]
[null,"Sentinel Lighting","RTSR - Connection","kW",2.3559000000000001,39745.85,126]
[null,"Street Lighting","RTSR - Network","kW",1.6924999999999999,9356816.3000000007,26440]
[null,"Street Lighting","RTSR - Connection","kW",2.3159999999999998,9356816.3000000007,26440]

{"sheet":"5. UTRs and Sub-Transmission","index":4,"n_rows":75,"n_cols":10,"rows_kept":75,"cut":false,"hidden":false,"merged":[[28,4,28,5],[17,4,17,5],[33,4,33,5],[19,4,19,5],[21,4,21,5],[23,4,23,5],[25,4,25,5],[69,4,69,5],[71,4,71,5],[74,4,74,5],[73,4,73,5],[50,4,50,5],[52,4,52,5],[54,4,54,5],[56,4,56,5],[65,4,65,5],[67,4,67,5]]}
[]
[]
[]
[]
[]
[]
[]
[]
[]
[]
[]
[]
[]
[]
[]
[]
[]
[null,"Uniform Transmission Rates","Unit",null,2015,null,null,2016,null,2017]
[]
[null,"Rate Description",null,null,"Rate",null,null,"Rate",null,"Rate"]
[]
[null,"Network Service Rate","kW",null,3.78,null,null,3.66,null,3.66]
[]
[null,"Line Connection Service Rate","kW",null,0.86,null,null,0.87,null,0.87]
[]
[null,"Transformation Connection Service Rate","kW",null,2,null,null,2.02,null,2.02]
[]
[]
[null,"Hydro One Sub-Transmission Rates","Unit",null,"2015 - 2016",null,null,2016,null,2017]
[null,null,null,null,"Jan - April 2015","May 2015 - Jan 2016",null,"Feb - Dec 2016"]
[]
[]
[]
[null,"Rate Description",null,null,"Rate",null,null,"Rate",null,"Rate"]
[]
[null,"Network Service Rate","kW",null,3.23,3.4121000000000001,null,3.3395999999999999,null,3.3395999999999999]
[]
[null,"Line Connection Service Rate","kW",null,0.65,0.78790000000000004,null,0.77910000000000001,null,0.77910000000000001]
[]
[null,"Transformation Connection Service Rate","kW",null,1.62,1.8018000000000001,null,1.7713000000000001,null,1.7713000000000001]
[]
[null,"Both Line and Transformation Connection Service Rate","kW",null,{"$f":"E40+E38","v":2.27},{"$f":"SUM(F40,F38)","v":2.5897000000000001},null,{"$f":"SUM(H40,H38)","v":2.5504000000000002},null,{"$f":"SUM(J40,J38)","v":2.5504000000000002}]
[]
[]
[null,"If needed, add extra host here. (I)","Unit",null,2015,null,null,2016,null,2017]
[]
[]
[]
[null,"Rate Description",null,null,"Rate",null,null,"Rate",null,"Rate"]
[]
[null,"Network Service Rate","kW"]
[]
[null,"Line Connection Service Rate","kW"]
[]
[null,"Transformation Connection Service Rate","kW"]
[]
[null,"Both Line and Transformation Connection Service Rate","kW",null,{"$f":"SUM(E53,E55)","v":0},null,null,{"$f":"SUM(H53,H55)","v":0},null,{"$f":"J55+J53","v":0}]
[]
[]
[null,"If needed, add extra host here. (II)","Unit",null,"Effective \nJanuary 1, 2014",null,null,"Effective \nJanuary 1, 2015",null,"Effective \nJanuary 1, 2016"]
[]
[]
[]
[null,"Rate Description",null,null,"Rate",null,null,"Rate",null,"Rate"]
[]
[null,"Network Service Rate","kW"]
[]
[null,"Line Connection Service Rate","kW"]
[]
[null,"Transformation Connection Service Rate","kW"]
[]
[null,"Both Line and Transformation Connection Service Rate","kW",null,{"$f":"SUM(E68,E70)","v":0},null,null,{"$f":"SUM(H68,H70)","v":0},null,{"$f":"J70+J68","v":0}]
[]
[null,null,null,null,"Historical 2015",null,null,"Current 2016",null,"Forecast 2017"]
[null,"Low Voltage Switchgear Credit (if applicable, enter as a negative value)","$"]

{"sheet":"6. Historical Wholesale","index":5,"n_rows":117,"n_cols":16,"rows_kept":117,"cut":false,"hidden":false,"merged":[[95,7,95,9],[95,11,95,13],[96,7,96,9],[96,11,96,13],[20,3,20,5],[20,7,20,9],[20,11,20,13],[96,3,96,5],[38,3,38,5],[38,7,38,9],[38,11,38,13],[95,3,95,5],[57,3,57,5],[57,7,57,9],[57,11,57,13],[76,3,76,5],[76,7,76,9],[76,11,76,13]]}
[]
[]
[]
[]
[]
[]
[]
[]
[]
[]
[]
[]
[]
[]
[]
[]
[]
[]
[]
[]
[null,"IESO",null,"Network",null,null,null,"Line Connection",null,null,null,"Transformation Connection",null,null,null,"Total Line"]
[null,"Month",null,"Units Billed","Rate","Amount",null,"Units Billed","Rate","Amount",null,"Units Billed","Rate","Amount",null,"Amount"]
[]
[null,"January",null,185858.99999999997,{"$f":"IF(D24<>0,F24/D24,0)","v":3.66},680243.94,null,190663.99999999997,{"$f":"IF(H24<>0,J24/H24,0)","v":0.87000000000000011},165877.68,null,190663.99999999997,{"$f":"IF(L24<>0,N24/L24,0)","v":2.0200000000000005},385141.28,null,{"$f":"J24+N24","v":551018.96}]
[null,"February",null,184535,{"$f":"IF(D25<>0,F25/D25,0)","v":3.6599999999999997},675398.1,null,215113,{"$f":"IF(H25<>0,J25/H25,0)","v":0.87},187148.31,null,215113,{"$f":"IF(L25<>0,N25/L25,0)","v":2.02},434528.26,null,621676.57000000007]
[null,"March",null,183297,3.66,670867.02,null,216716,0.87000000000000011,188542.92,null,216716,2.02,437766.32,null,626309.24]
[null,"April",null,158716,3.66,580900.56000000006,null,233736.60553633218,0.86996262110254852,203342.11,null,233736.60553633218,2.0200373788974515,472156.68,null,675498.79]
[null,"May",null,{"$f":"F28/E27","v":175476.99999999997},3.66,642245.81999999995,null,249333,0.87,216919.71,null,249333,2.02,503652.66,null,720572.37]
[null,"June",null,{"$f":"F29/E28","v":194916.99999999997},3.6600000000000006,713396.22,null,209985,0.87000000000000011,182686.95,null,209985,2.02,424169.7,null,606856.65]
[null,"July",null,213023.99999999997,3.66,779667.84,null,217295,0.87,189046.65,null,217295,2.02,438935.9,null,627982.55000000005]
[null,"August",null,220212.99999999997,3.66,805979.58,null,223709,0.87,194626.83,null,223709,2.02,451892.18,null,646519.01]
[null,"September",null,220437.99999999997,3.66,806803.08,null,231689.99999999997,0.87000000000000011,201570.3,null,231689.99999999997,2.02,468013.8,null,669584.1]
[null,"October",null,152350,3.66,557601,null,152350,0.87,132544.5,null,152350,2.02,307747,null,440291.5]
[null,"November",null,{"$f":"F34/E33","v":166619.99999999997},3.66,609829.19999999995,null,183436,0.87,159589.32,null,183436,2.02,370540.72,null,530130.04]
[null,"December",null,{"$f":"F35/E34","v":185787.99999999997},3.66,679984.08,null,188130.99999999997,0.87000000000000011,163673.97,null,188130.99999999997,2.0200000000000005,380024.62,null,543698.59]
[]
[null,"Total",null,{"$f":"SUM(D24:D35)","v":2241234},{"$f":"IF(D37<>0,F37/D37,0)","v":3.66},{"$f":"SUM(F24:F35)","v":8202916.4400000004},null,{"$f":"SUM(H24:H35)","v":2512158.6055363324},{"$f":"IF(H37<>0,J37/H37,0)","v":0.86999652218749646},{"$f":"SUM(J24:J35)","v":2185569.25},null,{"$f":"SUM(L24:L35)","v":2512158.6055363324},{"$f":"IF(L37<>0,N37/L37,0)","v":2.0200034778125033},{"$f":"SUM(N24:N35)","v":5074569.12},null,{"$f":"SUM(P24:P35)","v":7260138.3699999992}]
[]
[null,"Hydro One",null,"Network",null,null,null,"Line Connection",null,null,null,"Transformation Connection",null,null,null,"Total Line"]
[]
[null,"Month",null,"Units Billed","Rate","Amount",null,"Units Billed","Rate","Amount",null,"Units Billed","Rate","Amount",null,"Amount"]
[]
[null,"January",null,null,{"$f":"IF(D43<>0,F43/D43,0)","v":0},null,null,null,{"$f":"IF(H43<>0,J43/H43,0)","v":0},null,null,null,{"$f":"IF(L43<>0,N43/L43,0)","v":0},null,null,{"$f":"J43+N43","v":0}]
[null,"February",null,null,{"$f":"IF(D44<>0,F44/D44,0)","v":0},null,null,null,{"$f":"IF(H44<>0,J44/H44,0)","v":0},null,null,null,{"$f":"IF(L44<>0,N44/L44,0)","v":0},null,null,0]
[null,"March",null,null,0,null,null,null,0,null,null,null,0,null,null,0]
[null,"April",null,null,0,null,null,null,0,null,null,null,0,null,null,0]
[null,"May",null,null,0,null,null,null,0,null,null,null,0,null,null,0]
[null,"June",null,null,0,null,null,null,0,null,null,null,0,null,null,0]
[null,"July",null,null,0,null,null,null,0,null,null,null,0,null,null,0]
[null,"August",null,null,0,null,null,null,0,null,null,null,0,null,null,0]
[null,"September",null,null,0,null,null,null,0,null,null,null,0,null,null,0]
[null,"October",null,null,0,null,null,null,0,null,null,null,0,null,null,0]
[null,"November",null,null,0,null,null,null,0,null,null,null,0,null,null,0]
[null,"December",null,null,0,null,null,null,0,null,null,null,0,null,null,0]
[]
[null,"Total",null,{"$f":"SUM(D43:D54)","v":0},{"$f":"IF(D56<>0,F56/D56,0)","v":0},{"$f":"SUM(F43:F54)","v":0},null,{"$f":"SUM(H43:H54)","v":0},{"$f":"IF(H56<>0,J56/H56,0)","v":0},{"$f":"SUM(J43:J54)","v":0},null,{"$f":"SUM(L43:L54)","v":0},{"$f":"IF(L56<>0,N56/L56,0)","v":0},{"$f":"SUM(N43:N54)","v":0},null,{"$f":"SUM(P43:P54)","v":0}]
[]
[null,"Add Extra Host Here (I)",null,"Network",null,null,null,"Line Connection",null,null,null,"Transformation Connection",null,null,null,"Total Line"]
[null,"(if needed)"]
[null,"Month",null,"Units Billed","Rate","Amount",null,"Units Billed","Rate","Amount",null,"Units Billed","Rate","Amount",null,"Amount"]
[]
[null,"January",null,null,{"$f":"IF(D62<>0,F62/D62,0)","v":0},null,null,null,{"$f":"IF(H62<>0,J62/H62,0)","v":0},null,null,null,{"$f":"IF(L62<>0,N62/L62,0)","v":0},null,null,{"$f":"J62+N62","v":0}]
[null,"February",null,null,0,null,null,null,0,null,null,null,0,null,null,0]
[null,"March",null,null,0,null,null,null,0,null,null,null,0,null,null,0]
[null,"April",null,null,0,null,null,null,0,null,null,null,0,null,null,0]
[null,"May",null,null,0,null,null,null,0,null,null,null,0,null,null,0]
[null,"June",null,null,0,null,null,null,0,null,null,null,0,null,null,0]
[null,"July",null,null,0,null,null,null,0,null,null,null,0,null,null,0]
[null,"August",null,null,0,null,null,null,0,null,null,null,0,null,null,0]
[null,"September",null,null,0,null,null,null,0,null,null,null,0,null,null,0]
[null,"October",null,null,0,null,null,null,0,null,null,null,0,null,null,0]
[null,"November",null,null,0,null,null,null,0,null,null,null,0,null,null,0]
[null,"December",null,null,0,null,null,null,0,null,null,null,0,null,null,0]
[]
[null,"Total",null,{"$f":"SUM(D62:D73)","v":0},{"$f":"IF(D75<>0,F75/D75,0)","v":0},{"$f":"SUM(F62:F73)","v":0},null,{"$f":"SUM(H62:H73)","v":0},{"$f":"IF(H75<>0,J75/H75,0)","v":0},{"$f":"SUM(J62:J73)","v":0},null,{"$f":"SUM(L62:L73)","v":0},{"$f":"IF(L75<>0,N75/L75,0)","v":0},{"$f":"SUM(N62:N73)","v":0},null,{"$f":"SUM(P62:P73)","v":0}]
[]
[null,"Add Extra Host Here (II)",null,"Network",null,null,null,"Line Connection",null,null,null,"Transformation Connection",null,null,null,"Total Line"]
[null,"(if needed)"]
[null,"Month",null,"Units Billed","Rate","Amount",null,"Units Billed","Rate","Amount",null,"Units Billed","Rate","Amount",null,"Amount"]
[]
[null,"January",null,null,{"$f":"IF(D81<>0,F81/D81,0)","v":0},null,null,null,{"$f":"IF(H81<>0,J81/H81,0)","v":0},null,null,null,{"$f":"IF(L81<>0,N81/L81,0)","v":0},null,null,{"$f":"J81+N81","v":0}]
[null,"February",null,null,0,null,null,null,0,null,null,null,0,null,null,0]
[null,"March",null,null,0,null,null,null,0,null,null,null,0,null,null,0]
[null,"April",null,null,0,null,null,null,0,null,null,null,0,null,null,0]
[null,"May",null,null,0,null,null,null,0,null,null,null,0,null,null,0]
[null,"June",null,null,0,null,null,null,0,null,null,null,0,null,null,0]
[null,"July",null,null,0,null,null,null,0,null,null,null,0,null,null,0]
[null,"August",null,null,0,null,null,null,0,null,null,null,0,null,null,0]
[null,"September",null,null,0,null,null,null,0,null,null,null,0,null,null,0]
[null,"October",null,null,0,null,null,null,0,null,null,null,0,null,null,0]
[null,"November",null,null,0,null,null,null,0,null,null,null,0,null,null,0]
[null,"December",null,null,0,null,null,null,0,null,null,null,0,null,null,0]
[]
[null,"Total",null,{"$f":"SUM(D81:D92)","v":0},{"$f":"IF(D94<>0,F94/D94,0)","v":0},{"$f":"SUM(F81:F92)","v":0},null,{"$f":"SUM(H81:H92)","v":0},{"$f":"IF(H94<>0,J94/H94,0)","v":0},{"$f":"SUM(J81:J92)","v":0},null,{"$f":"SUM(L81:L92)","v":0},{"$f":"IF(L94<>0,N94/L94,0)","v":0},{"$f":"SUM(N81:N92)","v":0},null,{"$f":"SUM(P81:P92)","v":0}]
[]
[null,"Total",null,"Network",null,null,null,"Line Connection",null,null,null,"Transformation Connection",null,null,null,"Total Line"]
[]
[null,"Month",null,"Units Billed","Rate","Amount",null,"Units Billed","Rate","Amount",null,"Units Billed","Rate","Amount",null,"Amount"]
[]
[null,"January",null,{"$f":"D24+D43+D62+D81","v":185858.99999999997},{"$f":"IF(D100<>0,F100/D100,0)","v":3.66},{"$f":"F24+F43+F62+F81","v":680243.94},null,{"$f":"H24+H43+H62+H81","v":190663.99999999997},{"$f":"IF(H100<>0,J100/H100,0)","v":0.87000000000000011},{"$f":"J24+J43+J62+J81","v":165877.68},null,{"$f":"L24+L43+L62+L81","v":190663.99999999997},{"$f":"IF(L100<>0,N100/L100,0)","v":2.0200000000000005},{"$f":"N24+N43+N62+N81","v":385141.28},null,{"$f":"J100+N100","v":551018.96}]
[null,"February",null,{"$f":"D25+D44+D63+D82","v":184535},3.6599999999999997,{"$f":"F25+F44+F63+F82","v":675398.1},null,{"$f":"H25+H44+H63+H82","v":215113},0.87,{"$f":"J25+J44+J63+J82","v":187148.31},null,{"$f":"L25+L44+L63+L82","v":215113},2.02,{"$f":"N25+N44+N63+N82","v":434528.26},null,621676.57000000007]
[null,"March",null,183297,3.66,670867.02,null,216716,0.87000000000000011,188542.92,null,216716,2.02,437766.32,null,626309.24]
[null,"April",null,158716,3.66,580900.56000000006,null,233736.60553633218,0.86996262110254852,203342.11,null,233736.60553633218,2.0200373788974515,472156.68,null,675498.79]
[null,"May",null,175476.99999999997,3.66,642245.81999999995,null,249333,0.87,216919.71,null,249333,2.02,503652.66,null,720572.37]
[null,"June",null,194916.99999999997,3.6600000000000006,713396.22,null,209985,0.87000000000000011,182686.95,null,209985,2.02,424169.7,null,606856.65]
[null,"July",null,213023.99999999997,3.66,779667.84,null,217295,0.87,189046.65,null,217295,2.02,438935.9,null,627982.55000000005]
[null,"August",null,220212.99999999997,3.66,805979.58,null,223709,0.87,194626.83,null,223709,2.02,451892.18,null,646519.01]
[null,"September",null,220437.99999999997,3.66,806803.08,null,231689.99999999997,0.87000000000000011,201570.3,null,231689.99999999997,2.02,468013.8,null,669584.1]
[null,"October",null,152350,3.66,557601,null,152350,0.87,132544.5,null,152350,2.02,307747,null,440291.5]
[null,"November",null,166619.99999999997,3.66,609829.19999999995,null,183436,0.87,159589.32,null,183436,2.02,370540.72,null,530130.04]
[null,"December",null,185787.99999999997,3.66,679984.08,null,188130.99999999997,0.87000000000000011,163673.97,null,188130.99999999997,2.0200000000000005,380024.62,null,543698.59]
[]
[null,"Total",null,{"$f":"SUM(D100:D111)","v":2241234},{"$f":"IF(D113<>0,F113/D113,0)","v":3.66},{"$f":"SUM(F100:F111)","v":8202916.4400000004},null,{"$f":"SUM(H100:H111)","v":2512158.6055363324},{"$f":"IF(H113<>0,J113/H113,0)","v":0.86999652218749646},{"$f":"SUM(J100:J111)","v":2185569.25},null,{"$f":"SUM(L100:L111)","v":2512158.6055363324},{"$f":"IF(L113<>0,N113/L113,0)","v":2.0200034778125033},{"$f":"SUM(N100:N111)","v":5074569.12},null,{"$f":"SUM(P100:P111)","v":7260138.3699999992}]
[]
[null,null,null,null,null,null,null,null,null,null,null,null,null,"Low Voltage Switchgear Credit (if applicable)",null,{"$f":"'5. UTRs and Sub-Transmission'!E75","v":0}]
[]
[null,null,null,null,null,null,null,null,null,null,null,null,null,"Total including deduction for Low Voltage Switchgear Credit",null,{"$f":"P113+P115","v":7260138.3699999992}]

{"sheet":"7. Current Wholesale","index":6,"n_rows":117,"n_cols":16,"rows_kept":117,"cut":false,"hidden":false,"merged":[[12,1,12,11],[19,3,19,5],[19,7,19,9],[19,11,19,13],[38,3,38,5],[38,7,38,9],[38,11,38,13],[96,7,96,9],[96,11,96,13],[20,3,20,5],[20,7,20,9],[20,11,20,13],[96,3,96,5],[95,3,95,5],[95,7,95,9],[95,11,95,13],[57,3,57,5],[57,7,57,9],[57,11,57,13],[76,3,76,5],[76,7,76,9],[76,11,76,13]]}
[]
[]
[]
[]
[]
[]
[]
[]
[]
[]
[]
[]
[null,"The purpose of this sheet is to calculate the expected billing when current 2016 Uniform Transmission Rates are applied against historical 2015 transmission units."]
[]
[]
[]
[]
[]
[]
[null,"IESO",null,"Network",null,null,null,"Line Connection",null,null,null,"Transformation Connection",null,null,null,"Total Line"]
[]
[null,"Month",null,"Units Billed","Rate","Amount",null,"Units Billed","Rate","Amount",null,"Units Billed","Rate","Amount",null,"Amount"]
[]
[null,"January",null,{"$f":"'6. Historical Wholesale'!D24","v":185858.99999999997},{"$f":"'5. UTRs and Sub-Transmission'!H22","v":3.66},{"$f":"D24*E24","v":680243.94},null,{"$f":"'6. Historical Wholesale'!H24","v":190663.99999999997},{"$f":"'5. UTRs and Sub-Transmission'!H24","v":0.87},{"$f":"H24*I24","v":165877.67999999996},null,{"$f":"'6. Historical Wholesale'!L24","v":190663.99999999997},{"$f":"'5. UTRs and Sub-Transmission'!H26","v":2.02},{"$f":"L24*M24","v":385141.27999999997},null,{"$f":"J24+N24","v":551018.96}]
[null,"February",null,{"$f":"'6. Historical Wholesale'!D25","v":184535},{"$f":"E24","v":3.66},{"$f":"D25*E25","v":675398.1},null,{"$f":"'6. Historical Wholesale'!H25","v":215113},{"$f":"I24","v":0.87},{"$f":"H25*I25","v":187148.31},null,{"$f":"'6. Historical Wholesale'!L25","v":215113},{"$f":"M24","v":2.02},{"$f":"L25*M25","v":434528.26},null,621676.57000000007]
[null,"March",null,{"$f":"'6. Historical Wholesale'!D26","v":183297},{"$f":"E25","v":3.66},670867.02,null,{"$f":"'6. Historical Wholesale'!H26","v":216716},{"$f":"I25","v":0.87},188542.92,null,{"$f":"'6. Historical Wholesale'!L26","v":216716},{"$f":"M25","v":2.02},437766.32,null,626309.24]
[null,"April",null,{"$f":"'6. Historical Wholesale'!D27","v":158716},3.66,580900.56000000006,null,{"$f":"'6. Historical Wholesale'!H27","v":233736.60553633218},0.87,203350.846816609,null,{"$f":"'6. Historical Wholesale'!L27","v":233736.60553633218},2.02,472147.94318339101,null,675498.79]
[null,"May",null,{"$f":"'6. Historical Wholesale'!D28","v":175476.99999999997},3.66,642245.81999999995,null,{"$f":"'6. Historical Wholesale'!H28","v":249333},0.87,216919.71,null,{"$f":"'6. Historical Wholesale'!L28","v":249333},2.02,503652.66000000003,null,720572.37]
[null,"June",null,{"$f":"'6. Historical Wholesale'!D29","v":194916.99999999997},3.66,713396.22,null,{"$f":"'6. Historical Wholesale'!H29","v":209985},0.87,182686.95,null,{"$f":"'6. Historical Wholesale'!L29","v":209985},2.02,424169.7,null,606856.65]
[null,"July",null,{"$f":"'6. Historical Wholesale'!D30","v":213023.99999999997},3.66,779667.84,null,{"$f":"'6. Historical Wholesale'!H30","v":217295},0.87,189046.65,null,{"$f":"'6. Historical Wholesale'!L30","v":217295},2.02,438935.9,null,627982.55000000005]
[null,"August",null,{"$f":"'6. Historical Wholesale'!D31","v":220212.99999999997},3.66,805979.58,null,{"$f":"'6. Historical Wholesale'!H31","v":223709},0.87,194626.83,null,{"$f":"'6. Historical Wholesale'!L31","v":223709},2.02,451892.18,null,646519.01]
[null,"September",null,{"$f":"'6. Historical Wholesale'!D32","v":220437.99999999997},3.66,806803.08,null,{"$f":"'6. Historical Wholesale'!H32","v":231689.99999999997},0.87,201570.29999999996,null,{"$f":"'6. Historical Wholesale'!L32","v":231689.99999999997},2.02,468013.79999999993,null,669584.09999999986]
[null,"October",null,{"$f":"'6. Historical Wholesale'!D33","v":152350},3.66,557601,null,{"$f":"'6. Historical Wholesale'!H33","v":152350},0.87,132544.5,null,{"$f":"'6. Historical Wholesale'!L33","v":152350},2.02,307747,null,440291.5]
[null,"November",null,{"$f":"'6. Historical Wholesale'!D34","v":166619.99999999997},3.66,609829.19999999995,null,{"$f":"'6. Historical Wholesale'!H34","v":183436},0.87,159589.32,null,{"$f":"'6. Historical Wholesale'!L34","v":183436},2.02,370540.72000000003,null,530130.04]
[null,"December",null,{"$f":"'6. Historical Wholesale'!D35","v":185787.99999999997},3.66,679984.08,null,{"$f":"'6. Historical Wholesale'!H35","v":188130.99999999997},0.87,163673.96999999997,null,{"$f":"'6. Historical Wholesale'!L35","v":188130.99999999997},2.02,380024.61999999994,null,543698.58999999985]
[]
[null,"Total",null,{"$f":"SUM(D24:D35)","v":2241234},{"$f":"IF(D37<>0,F37/D37,0)","v":3.66},{"$f":"SUM(F24:F35)","v":8202916.4400000004},null,{"$f":"SUM(H24:H35)","v":2512158.6055363324},{"$f":"IF(H37<>0,J37/H37,0)","v":0.87000000000000011},{"$f":"SUM(J24:J35)","v":2185577.9868166093},null,{"$f":"SUM(L24:L35)","v":2512158.6055363324},{"$f":"IF(L37<>0,N37/L37,0)","v":2.02},{"$f":"SUM(N24:N35)","v":5074560.3831833918},null,{"$f":"SUM(P24:P35)","v":7260138.3699999992}]
[]
[null,"Hydro One",null,"Network",null,null,null,"Line Connection",null,null,null,"Transformation Connection",null,null,null,"Total Line"]
[]
[null,"Month",null,"Units Billed","Rate","Amount",null,"Units Billed","Rate","Amount",null,"Units Billed","Rate","Amount",null,"Amount"]
[]
[null,"January",null,{"$f":"'6. Historical Wholesale'!D43","v":0},{"$f":"'5. UTRs and Sub-Transmission'!$F$36","v":3.4121000000000001},{"$f":"D43*E43","v":0},null,{"$f":"'6. Historical Wholesale'!H43","v":0},{"$f":"'5. UTRs and Sub-Transmission'!F38","v":0.78790000000000004},{"$f":"H43*I43","v":0},null,{"$f":"'6. Historical Wholesale'!L43","v":0},{"$f":"'5. UTRs and Sub-Transmission'!F40","v":1.8018000000000001},{"$f":"L43*M43","v":0},null,{"$f":"J43+N43","v":0}]
[null,"February",null,{"$f":"'6. Historical Wholesale'!D44","v":0},{"$f":"'5. UTRs and Sub-Transmission'!H36","v":3.3395999999999999},{"$f":"D44*E44","v":0},null,{"$f":"'6. Historical Wholesale'!H44","v":0},{"$f":"'5. UTRs and Sub-Transmission'!H38","v":0.77910000000000001},{"$f":"H44*I44","v":0},null,{"$f":"'6. Historical Wholesale'!L44","v":0},{"$f":"'5. UTRs and Sub-Transmission'!H40","v":1.7713000000000001},{"$f":"L44*M44","v":0},null,0]
[null,"March",null,{"$f":"'6. Historical Wholesale'!D45","v":0},{"$f":"E44","v":3.3395999999999999},0,null,{"$f":"'6. Historical Wholesale'!H45","v":0},{"$f":"I44","v":0.77910000000000001},0,null,{"$f":"'6. Historical Wholesale'!L45","v":0},{"$f":"M44","v":1.7713000000000001},0,null,0]
[null,"April",null,{"$f":"'6. Historical Wholesale'!D46","v":0},3.3395999999999999,0,null,{"$f":"'6. Historical Wholesale'!H46","v":0},0.77910000000000001,0,null,{"$f":"'6. Historical Wholesale'!L46","v":0},{"$f":"M45","v":1.7713000000000001},0,null,0]
[null,"May",null,{"$f":"'6. Historical Wholesale'!D47","v":0},3.3395999999999999,0,null,{"$f":"'6. Historical Wholesale'!H47","v":0},0.77910000000000001,0,null,{"$f":"'6. Historical Wholesale'!L47","v":0},1.7713000000000001,0,null,0]
[null,"June",null,{"$f":"'6. Historical Wholesale'!D48","v":0},3.3395999999999999,0,null,{"$f":"'6. Historical Wholesale'!H48","v":0},0.77910000000000001,0,null,{"$f":"'6. Historical Wholesale'!L48","v":0},1.7713000000000001,0,null,0]
[null,"July",null,{"$f":"'6. Historical Wholesale'!D49","v":0},3.3395999999999999,0,null,{"$f":"'6. Historical Wholesale'!H49","v":0},0.77910000000000001,0,null,{"$f":"'6. Historical Wholesale'!L49","v":0},1.7713000000000001,0,null,0]
[null,"August",null,{"$f":"'6. Historical Wholesale'!D50","v":0},3.3395999999999999,0,null,{"$f":"'6. Historical Wholesale'!H50","v":0},0.77910000000000001,0,null,{"$f":"'6. Historical Wholesale'!L50","v":0},1.7713000000000001,0,null,0]
[null,"September",null,{"$f":"'6. Historical Wholesale'!D51","v":0},3.3395999999999999,0,null,{"$f":"'6. Historical Wholesale'!H51","v":0},0.77910000000000001,0,null,{"$f":"'6. Historical Wholesale'!L51","v":0},1.7713000000000001,0,null,0]
[null,"October",null,{"$f":"'6. Historical Wholesale'!D52","v":0},3.3395999999999999,0,null,{"$f":"'6. Historical Wholesale'!H52","v":0},0.77910000000000001,0,null,{"$f":"'6. Historical Wholesale'!L52","v":0},1.7713000000000001,0,null,0]
[null,"November",null,{"$f":"'6. Historical Wholesale'!D53","v":0},3.3395999999999999,0,null,{"$f":"'6. Historical Wholesale'!H53","v":0},0.77910000000000001,0,null,{"$f":"'6. Historical Wholesale'!L53","v":0},1.7713000000000001,0,null,0]
[null,"December",null,{"$f":"'6. Historical Wholesale'!D54","v":0},3.3395999999999999,0,null,{"$f":"'6. Historical Wholesale'!H54","v":0},0.77910000000000001,0,null,{"$f":"'6. Historical Wholesale'!L54","v":0},1.7713000000000001,0,null,0]
[]
[null,"Total",null,{"$f":"SUM(D43:D54)","v":0},{"$f":"IF(D56<>0,F56/D56,0)","v":0},{"$f":"SUM(F43:F54)","v":0},null,{"$f":"SUM(H43:H54)","v":0},{"$f":"IF(H56<>0,J56/H56,0)","v":0},{"$f":"SUM(J43:J54)","v":0},null,{"$f":"SUM(L43:L54)","v":0},{"$f":"IF(L56<>0,N56/L56,0)","v":0},{"$f":"SUM(N43:N54)","v":0},null,{"$f":"SUM(P43:P54)","v":0}]
[]
[null,{"$f":"'6. Historical Wholesale'!B58","v":"Add Extra Host Here (I)"},null,"Network",null,null,null,"Line Connection",null,null,null,"Transformation Connection",null,null,null,"Total Line"]
[]
[null,"Month",null,"Units Billed","Rate","Amount",null,"Units Billed","Rate","Amount",null,"Units Billed","Rate","Amount",null,"Amount"]
[]
[null,"January",null,{"$f":"'6. Historical Wholesale'!D62","v":0},{"$f":"'5. UTRs and Sub-Transmission'!H51","v":0},{"$f":"D62*E62","v":0},null,{"$f":"'6. Historical Wholesale'!H62","v":0},{"$f":"'5. UTRs and Sub-Transmission'!H53","v":0},{"$f":"H62*I62","v":0},null,{"$f":"'6. Historical Wholesale'!L62","v":0},{"$f":"'5. UTRs and Sub-Transmission'!H55","v":0},{"$f":"L62*M62","v":0},null,{"$f":"J62+N62","v":0}]
[null,"February",null,{"$f":"'6. Historical Wholesale'!D63","v":0},{"$f":"E62","v":0},{"$f":"D63*E63","v":0},null,{"$f":"'6. Historical Wholesale'!H63","v":0},{"$f":"I62","v":0},{"$f":"H63*I63","v":0},null,{"$f":"'6. Historical Wholesale'!L63","v":0},{"$f":"M62","v":0},{"$f":"L63*M63","v":0},null,0]
[null,"March",null,{"$f":"'6. Historical Wholesale'!D64","v":0},{"$f":"E63","v":0},0,null,{"$f":"'6. Historical Wholesale'!H64","v":0},{"$f":"I63","v":0},0,null,{"$f":"'6. Historical Wholesale'!L64","v":0},{"$f":"M63","v":0},0,null,0]
[null,"April",null,{"$f":"'6. Historical Wholesale'!D65","v":0},0,0,null,{"$f":"'6. Historical Wholesale'!H65","v":0},0,0,null,{"$f":"'6. Historical Wholesale'!L65","v":0},{"$f":"M64","v":0},0,null,0]
[null,"May",null,{"$f":"'6. Historical Wholesale'!D66","v":0},0,0,null,{"$f":"'6. Historical Wholesale'!H66","v":0},0,0,null,{"$f":"'6. Historical Wholesale'!L66","v":0},0,0,null,0]
[null,"June",null,{"$f":"'6. Historical Wholesale'!D67","v":0},0,0,null,{"$f":"'6. Historical Wholesale'!H67","v":0},0,0,null,{"$f":"'6. Historical Wholesale'!L67","v":0},0,0,null,0]
[null,"July",null,{"$f":"'6. Historical Wholesale'!D68","v":0},0,0,null,{"$f":"'6. Historical Wholesale'!H68","v":0},0,0,null,{"$f":"'6. Historical Wholesale'!L68","v":0},0,0,null,0]
[null,"August",null,{"$f":"'6. Historical Wholesale'!D69","v":0},0,0,null,{"$f":"'6. Historical Wholesale'!H69","v":0},0,0,null,{"$f":"'6. Historical Wholesale'!L69","v":0},0,0,null,0]
[null,"September",null,{"$f":"'6. Historical Wholesale'!D70","v":0},0,0,null,{"$f":"'6. Historical Wholesale'!H70","v":0},0,0,null,{"$f":"'6. Historical Wholesale'!L70","v":0},0,0,null,0]
[null,"October",null,{"$f":"'6. Historical Wholesale'!D71","v":0},0,0,null,{"$f":"'6. Historical Wholesale'!H71","v":0},0,0,null,{"$f":"'6. Historical Wholesale'!L71","v":0},0,0,null,0]
[null,"November",null,{"$f":"'6. Historical Wholesale'!D72","v":0},0,0,null,{"$f":"'6. Historical Wholesale'!H72","v":0},0,0,null,{"$f":"'6. Historical Wholesale'!L72","v":0},0,0,null,0]
[null,"December",null,{"$f":"'6. Historical Wholesale'!D73","v":0},0,0,null,{"$f":"'6. Historical Wholesale'!H73","v":0},0,0,null,{"$f":"'6. Historical Wholesale'!L73","v":0},0,0,null,0]
[]
[null,"Total",null,{"$f":"SUM(D62:D73)","v":0},{"$f":"IF(D75<>0,F75/D75,0)","v":0},{"$f":"SUM(F62:F73)","v":0},null,{"$f":"SUM(H62:H73)","v":0},{"$f":"IF(H75<>0,J75/H75,0)","v":0},{"$f":"SUM(J62:J73)","v":0},null,{"$f":"SUM(L62:L73)","v":0},{"$f":"IF(L75<>0,N75/L75,0)","v":0},{"$f":"SUM(N62:N73)","v":0},null,{"$f":"SUM(P62:P73)","v":0}]
[]
[null,{"$f":"'6. Historical Wholesale'!B77","v":"Add Extra Host Here (II)"},null,"Network",null,null,null,"Line Connection",null,null,null,"Transformation Connection",null,null,null,"Total Line"]
[]
[null,"Month",null,"Units Billed","Rate","Amount",null,"Units Billed","Rate","Amount",null,"Units Billed","Rate","Amount",null,"Amount"]
[]
[null,"January",null,{"$f":"'6. Historical Wholesale'!D81","v":0},{"$f":"'5. UTRs and Sub-Transmission'!H66","v":0},{"$f":"D81*E81","v":0},null,{"$f":"'6. Historical Wholesale'!H81","v":0},{"$f":"'5. UTRs and Sub-Transmission'!H68","v":0},{"$f":"H81*I81","v":0},null,{"$f":"'6. Historical Wholesale'!L81","v":0},{"$f":"'5. UTRs and Sub-Transmission'!H70","v":0},{"$f":"L81*M81","v":0},null,{"$f":"J81+N81","v":0}]
[null,"February",null,{"$f":"'6. Historical Wholesale'!D82","v":0},{"$f":"E81","v":0},{"$f":"D82*E82","v":0},null,{"$f":"'6. Historical Wholesale'!H82","v":0},{"$f":"I81","v":0},{"$f":"H82*I82","v":0},null,{"$f":"'6. Historical Wholesale'!L82","v":0},{"$f":"M81","v":0},{"$f":"L82*M82","v":0},null,0]
[null,"March",null,{"$f":"'6. Historical Wholesale'!D83","v":0},{"$f":"E82","v":0},0,null,{"$f":"'6. Historical Wholesale'!H83","v":0},{"$f":"I82","v":0},0,null,{"$f":"'6. Historical Wholesale'!L83","v":0},{"$f":"M82","v":0},0,null,0]
[null,"April",null,{"$f":"'6. Historical Wholesale'!D84","v":0},0,0,null,{"$f":"'6. Historical Wholesale'!H84","v":0},0,0,null,{"$f":"'6. Historical Wholesale'!L84","v":0},{"$f":"M83","v":0},0,null,0]
[null,"May",null,{"$f":"'6. Historical Wholesale'!D85","v":0},0,0,null,{"$f":"'6. Historical Wholesale'!H85","v":0},0,0,null,{"$f":"'6. Historical Wholesale'!L85","v":0},0,0,null,0]
[null,"June",null,{"$f":"'6. Historical Wholesale'!D86","v":0},0,0,null,{"$f":"'6. Historical Wholesale'!H86","v":0},0,0,null,{"$f":"'6. Historical Wholesale'!L86","v":0},0,0,null,0]
[null,"July",null,{"$f":"'6. Historical Wholesale'!D87","v":0},0,0,null,{"$f":"'6. Historical Wholesale'!H87","v":0},0,0,null,{"$f":"'6. Historical Wholesale'!L87","v":0},0,0,null,0]
[null,"August",null,{"$f":"'6. Historical Wholesale'!D88","v":0},0,0,null,{"$f":"'6. Historical Wholesale'!H88","v":0},0,0,null,{"$f":"'6. Historical Wholesale'!L88","v":0},0,0,null,0]
[null,"September",null,{"$f":"'6. Historical Wholesale'!D89","v":0},0,0,null,{"$f":"'6. Historical Wholesale'!H89","v":0},0,0,null,{"$f":"'6. Historical Wholesale'!L89","v":0},0,0,null,0]
[null,"October",null,{"$f":"'6. Historical Wholesale'!D90","v":0},0,0,null,{"$f":"'6. Historical Wholesale'!H90","v":0},0,0,null,{"$f":"'6. Historical Wholesale'!L90","v":0},0,0,null,0]
[null,"November",null,{"$f":"'6. Historical Wholesale'!D91","v":0},0,0,null,{"$f":"'6. Historical Wholesale'!H91","v":0},0,0,null,{"$f":"'6. Historical Wholesale'!L91","v":0},0,0,null,0]
[null,"December",null,{"$f":"'6. Historical Wholesale'!D92","v":0},0,0,null,{"$f":"'6. Historical Wholesale'!H92","v":0},0,0,null,{"$f":"'6. Historical Wholesale'!L92","v":0},0,0,null,0]
[]
[null,"Total",null,{"$f":"SUM(D81:D92)","v":0},{"$f":"IF(D94<>0,F94/D94,0)","v":0},{"$f":"SUM(F81:F92)","v":0},null,{"$f":"SUM(H81:H92)","v":0},{"$f":"IF(H94<>0,J94/H94,0)","v":0},{"$f":"SUM(J81:J92)","v":0},null,{"$f":"SUM(L81:L92)","v":0},{"$f":"IF(L94<>0,N94/L94,0)","v":0},{"$f":"SUM(N81:N92)","v":0},null,{"$f":"SUM(P81:P92)","v":0}]
[]
[null,"Total",null,"Network",null,null,null,"Line Connection",null,null,null,"Transformation Connection",null,null,null,"Total Line"]
[]
[null,"Month",null,"Units Billed","Rate","Amount",null,"Units Billed","Rate","Amount",null,"Units Billed","Rate","Amount",null,"Amount"]
[]
[null,"January",null,{"$f":"D24+D43+D62+D81","v":185858.99999999997},{"$f":"IF(D100<>0,F100/D100,0)","v":3.66},{"$f":"F24+F43+F62+F81","v":680243.94},null,{"$f":"H24+H43+H62+H81","v":190663.99999999997},{"$f":"IF(H100<>0,J100/H100,0)","v":0.87},{"$f":"J24+J43+J62+J81","v":165877.67999999996},null,{"$f":"L24+L43+L62+L81","v":190663.99999999997},{"$f":"IF(L100<>0,N100/L100,0)","v":2.02},{"$f":"N24+N43+N62+N81","v":385141.27999999997},null,{"$f":"J100+N100","v":551018.96}]
[null,"February",null,{"$f":"D25+D44+D63+D82","v":184535},3.6599999999999997,{"$f":"F25+F44+F63+F82","v":675398.1},null,{"$f":"H25+H44+H63+H82","v":215113},0.87,{"$f":"J25+J44+J63+J82","v":187148.31},null,{"$f":"L25+L44+L63+L82","v":215113},2.02,{"$f":"N25+N44+N63+N82","v":434528.26},null,621676.57000000007]
[null,"March",null,183297,3.66,670867.02,null,216716,0.87000000000000011,188542.92,null,216716,2.02,437766.32,null,626309.24]
[null,"April",null,158716,3.66,580900.56000000006,null,233736.60553633218,0.87,203350.846816609,null,233736.60553633218,2.02,472147.94318339101,null,675498.79]
[null,"May",null,175476.99999999997,3.66,642245.81999999995,null,249333,0.87,216919.71,null,249333,2.02,503652.66000000003,null,720572.37]
[null,"June",null,194916.99999999997,3.6600000000000006,713396.22,null,209985,0.87000000000000011,182686.95,null,209985,2.02,424169.7,null,606856.65]
[null,"July",null,213023.99999999997,3.66,779667.84,null,217295,0.87,189046.65,null,217295,2.02,438935.9,null,627982.55000000005]
[null,"August",null,220212.99999999997,3.66,805979.58,null,223709,0.87,194626.83,null,223709,2.02,451892.18,null,646519.01]
[null,"September",null,220437.99999999997,3.66,806803.08,null,231689.99999999997,0.86999999999999988,201570.29999999996,null,231689.99999999997,2.02,468013.79999999993,null,669584.09999999986]
[null,"October",null,152350,3.66,557601,null,152350,0.87,132544.5,null,152350,2.02,307747,null,440291.5]
[null,"November",null,166619.99999999997,3.66,609829.19999999995,null,183436,0.87,159589.32,null,183436,2.02,370540.72000000003,null,530130.04]
[null,"December",null,185787.99999999997,3.66,679984.08,null,188130.99999999997,0.87,163673.96999999997,null,188130.99999999997,2.02,380024.61999999994,null,543698.58999999985]
[]
[null,"Total",null,{"$f":"SUM(D100:D111)","v":2241234},{"$f":"IF(D113<>0,F113/D113,0)","v":3.66},{"$f":"SUM(F100:F111)","v":8202916.4400000004},null,{"$f":"SUM(H100:H111)","v":2512158.6055363324},{"$f":"IF(H113<>0,J113/H113,0)","v":0.87000000000000011},{"$f":"SUM(J100:J111)","v":2185577.9868166093},null,{"$f":"SUM(L100:L111)","v":2512158.6055363324},{"$f":"IF(L113<>0,N113/L113,0)","v":2.02},{"$f":"SUM(N100:N111)","v":5074560.3831833918},null,{"$f":"SUM(P100:P111)","v":7260138.3699999992}]
[]
[null,null,null,null,null,null,null,null,null,null,null,null,null,"Low Voltage Switchgear Credit (if applicable)",null,{"$f":"'5. UTRs and Sub-Transmission'!H75","v":0}]
[]
[null,null,null,null,null,null,null,null,null,null,null,null,null,"Total including deduction for Low Voltage Switchgear Credit",null,{"$f":"P113+P115","v":7260138.3699999992}]

{"sheet":"8. Forecast Wholesale","index":7,"n_rows":117,"n_cols":16,"rows_kept":117,"cut":false,"hidden":false,"merged":[[12,1,12,12],[19,3,19,5],[19,7,19,9],[19,11,19,13],[38,3,38,5],[38,7,38,9],[38,11,38,13],[96,7,96,9],[96,11,96,13],[20,3,20,5],[20,7,20,9],[20,11,20,13],[96,3,96,5],[95,3,95,5],[95,7,95,9],[95,11,95,13],[57,3,57,5],[57,7,57,9],[57,11,57,13],[76,3,76,5],[76,7,76,9],[76,11,76,13]]}
[]
[]
[]
[]
[]
[]
[]
[]
[]
[]
[]
[]
[null,"The purpose of this sheet is to calculate the expected billing when forecasted 2017 Uniform Transmission Rates are applied against historical 2015 transmission units."]
[]
[]
[]
[]
[]
[]
[null,"IESO",null,"Network",null,null,null,"Line Connection",null,null,null,"Transformation Connection",null,null,null,"Total Line"]
[]
[null,"Month",null,"Units Billed","Rate","Amount",null,"Units Billed","Rate","Amount",null,"Units Billed","Rate","Amount",null,"Amount"]
[]
[null,"January",null,{"$f":"'6. Historical Wholesale'!D24","v":185858.99999999997},{"$f":"'5. UTRs and Sub-Transmission'!J22","v":3.66},{"$f":"D24*E24","v":680243.94},null,{"$f":"'6. Historical Wholesale'!H24","v":190663.99999999997},{"$f":"'5. UTRs and Sub-Transmission'!J24","v":0.87},{"$f":"H24*I24","v":165877.67999999996},null,{"$f":"'6. Historical Wholesale'!L24","v":190663.99999999997},{"$f":"'5. UTRs and Sub-Transmission'!J26","v":2.02},{"$f":"L24*M24","v":385141.27999999997},null,{"$f":"J24+N24","v":551018.96}]
[null,"February",null,{"$f":"'6. Historical Wholesale'!D25","v":184535},{"$f":"E24","v":3.66},675398.1,null,{"$f":"'6. Historical Wholesale'!H25","v":215113},{"$f":"I24","v":0.87},187148.31,null,{"$f":"'6. Historical Wholesale'!L25","v":215113},{"$f":"M24","v":2.02},434528.26,null,621676.57000000007]
[null,"March",null,{"$f":"'6. Historical Wholesale'!D26","v":183297},3.66,670867.02,null,{"$f":"'6. Historical Wholesale'!H26","v":216716},0.87,188542.92,null,{"$f":"'6. Historical Wholesale'!L26","v":216716},2.02,437766.32,null,626309.24]
[null,"April",null,{"$f":"'6. Historical Wholesale'!D27","v":158716},3.66,580900.56000000006,null,{"$f":"'6. Historical Wholesale'!H27","v":233736.60553633218},0.87,203350.846816609,null,{"$f":"'6. Historical Wholesale'!L27","v":233736.60553633218},2.02,472147.94318339101,null,675498.79]
[null,"May",null,{"$f":"'6. Historical Wholesale'!D28","v":175476.99999999997},3.66,642245.81999999995,null,{"$f":"'6. Historical Wholesale'!H28","v":249333},0.87,216919.71,null,{"$f":"'6. Historical Wholesale'!L28","v":249333},2.02,503652.66000000003,null,720572.37]
[null,"June",null,{"$f":"'6. Historical Wholesale'!D29","v":194916.99999999997},3.66,713396.22,null,{"$f":"'6. Historical Wholesale'!H29","v":209985},0.87,182686.95,null,{"$f":"'6. Historical Wholesale'!L29","v":209985},2.02,424169.7,null,606856.65]
[null,"July",null,{"$f":"'6. Historical Wholesale'!D30","v":213023.99999999997},3.66,779667.84,null,{"$f":"'6. Historical Wholesale'!H30","v":217295},0.87,189046.65,null,{"$f":"'6. Historical Wholesale'!L30","v":217295},2.02,438935.9,null,627982.55000000005]
[null,"August",null,{"$f":"'6. Historical Wholesale'!D31","v":220212.99999999997},3.66,805979.58,null,{"$f":"'6. Historical Wholesale'!H31","v":223709},0.87,194626.83,null,{"$f":"'6. Historical Wholesale'!L31","v":223709},2.02,451892.18,null,646519.01]
[null,"September",null,{"$f":"'6. Historical Wholesale'!D32","v":220437.99999999997},3.66,806803.08,null,{"$f":"'6. Historical Wholesale'!H32","v":231689.99999999997},0.87,201570.29999999996,null,{"$f":"'6. Historical Wholesale'!L32","v":231689.99999999997},2.02,468013.79999999993,null,669584.09999999986]
[null,"October",null,{"$f":"'6. Historical Wholesale'!D33","v":152350},3.66,557601,null,{"$f":"'6. Historical Wholesale'!H33","v":152350},0.87,132544.5,null,{"$f":"'6. Historical Wholesale'!L33","v":152350},2.02,307747,null,440291.5]
[null,"November",null,{"$f":"'6. Historical Wholesale'!D34","v":166619.99999999997},3.66,609829.19999999995,null,{"$f":"'6. Historical Wholesale'!H34","v":183436},0.87,159589.32,null,{"$f":"'6. Historical Wholesale'!L34","v":183436},2.02,370540.72000000003,null,530130.04]
[null,"December",null,{"$f":"'6. Historical Wholesale'!D35","v":185787.99999999997},3.66,679984.08,null,{"$f":"'6. Historical Wholesale'!H35","v":188130.99999999997},0.87,163673.96999999997,null,{"$f":"'6. Historical Wholesale'!L35","v":188130.99999999997},2.02,380024.61999999994,null,543698.58999999985]
[]
[null,"Total",null,{"$f":"SUM(D24:D35)","v":2241234},{"$f":"IF(D37<>0,F37/D37,0)","v":3.66},{"$f":"SUM(F24:F35)","v":8202916.4400000004},null,{"$f":"SUM(H24:H35)","v":2512158.6055363324},{"$f":"IF(H37<>0,J37/H37,0)","v":0.87000000000000011},{"$f":"SUM(J24:J35)","v":2185577.9868166093},null,{"$f":"SUM(L24:L35)","v":2512158.6055363324},{"$f":"IF(L37<>0,N37/L37,0)","v":2.02},{"$f":"SUM(N24:N35)","v":5074560.3831833918},null,{"$f":"SUM(P24:P35)","v":7260138.3699999992}]
[]
[null,"Hydro One",null,"Network",null,null,null,"Line Connection",null,null,null,"Transformation Connection",null,null,null,"Total Line"]
[]
[null,"Month",null,"Units Billed","Rate","Amount",null,"Units Billed","Rate","Amount",null,"Units Billed","Rate","Amount",null,"Amount"]
[]
[null,"January",null,{"$f":"'6. Historical Wholesale'!D43","v":0},{"$f":"'5. UTRs and Sub-Transmission'!J36","v":3.3395999999999999},{"$f":"D43*E43","v":0},null,{"$f":"'6. Historical Wholesale'!H43","v":0},{"$f":"'5. UTRs and Sub-Transmission'!J38","v":0.77910000000000001},{"$f":"H43*I43","v":0},null,{"$f":"'6. Historical Wholesale'!L43","v":0},{"$f":"'5. UTRs and Sub-Transmission'!J40","v":1.7713000000000001},{"$f":"L43*M43","v":0},null,{"$f":"J43+N43","v":0}]
[null,"February",null,{"$f":"'6. Historical Wholesale'!D44","v":0},{"$f":"E43","v":3.3395999999999999},0,null,{"$f":"'6. Historical Wholesale'!H44","v":0},{"$f":"I43","v":0.77910000000000001},0,null,{"$f":"'6. Historical Wholesale'!L44","v":0},{"$f":"M43","v":1.7713000000000001},0,null,0]
[null,"March",null,{"$f":"'6. Historical Wholesale'!D45","v":0},3.3395999999999999,0,null,{"$f":"'6. Historical Wholesale'!H45","v":0},0.77910000000000001,0,null,{"$f":"'6. Historical Wholesale'!L45","v":0},1.7713000000000001,0,null,0]
[null,"April",null,{"$f":"'6. Historical Wholesale'!D46","v":0},3.3395999999999999,0,null,{"$f":"'6. Historical Wholesale'!H46","v":0},0.77910000000000001,0,null,{"$f":"'6. Historical Wholesale'!L46","v":0},1.7713000000000001,0,null,0]
[null,"May",null,{"$f":"'6. Historical Wholesale'!D47","v":0},3.3395999999999999,0,null,{"$f":"'6. Historical Wholesale'!H47","v":0},0.77910000000000001,0,null,{"$f":"'6. Historical Wholesale'!L47","v":0},1.7713000000000001,0,null,0]
[null,"June",null,{"$f":"'6. Historical Wholesale'!D48","v":0},3.3395999999999999,0,null,{"$f":"'6. Historical Wholesale'!H48","v":0},0.77910000000000001,0,null,{"$f":"'6. Historical Wholesale'!L48","v":0},1.7713000000000001,0,null,0]
[null,"July",null,{"$f":"'6. Historical Wholesale'!D49","v":0},3.3395999999999999,0,null,{"$f":"'6. Historical Wholesale'!H49","v":0},0.77910000000000001,0,null,{"$f":"'6. Historical Wholesale'!L49","v":0},1.7713000000000001,0,null,0]
[null,"August",null,{"$f":"'6. Historical Wholesale'!D50","v":0},3.3395999999999999,0,null,{"$f":"'6. Historical Wholesale'!H50","v":0},0.77910000000000001,0,null,{"$f":"'6. Historical Wholesale'!L50","v":0},1.7713000000000001,0,null,0]
[null,"September",null,{"$f":"'6. Historical Wholesale'!D51","v":0},3.3395999999999999,0,null,{"$f":"'6. Historical Wholesale'!H51","v":0},0.77910000000000001,0,null,{"$f":"'6. Historical Wholesale'!L51","v":0},1.7713000000000001,0,null,0]
[null,"October",null,{"$f":"'6. Historical Wholesale'!D52","v":0},3.3395999999999999,0,null,{"$f":"'6. Historical Wholesale'!H52","v":0},0.77910000000000001,0,null,{"$f":"'6. Historical Wholesale'!L52","v":0},1.7713000000000001,0,null,0]
[null,"November",null,{"$f":"'6. Historical Wholesale'!D53","v":0},3.3395999999999999,0,null,{"$f":"'6. Historical Wholesale'!H53","v":0},0.77910000000000001,0,null,{"$f":"'6. Historical Wholesale'!L53","v":0},1.7713000000000001,0,null,0]
[null,"December",null,{"$f":"'6. Historical Wholesale'!D54","v":0},3.3395999999999999,0,null,{"$f":"'6. Historical Wholesale'!H54","v":0},0.77910000000000001,0,null,{"$f":"'6. Historical Wholesale'!L54","v":0},1.7713000000000001,0,null,0]
[]
[null,"Total",null,{"$f":"SUM(D43:D54)","v":0},{"$f":"IF(D56<>0,F56/D56,0)","v":0},{"$f":"SUM(F43:F54)","v":0},null,{"$f":"SUM(H43:H54)","v":0},{"$f":"IF(H56<>0,J56/H56,0)","v":0},{"$f":"SUM(J43:J54)","v":0},null,{"$f":"SUM(L43:L54)","v":0},{"$f":"IF(L56<>0,N56/L56,0)","v":0},{"$f":"SUM(N43:N54)","v":0},null,{"$f":"SUM(P43:P54)","v":0}]
[]
[null,{"$f":"'6. Historical Wholesale'!B58","v":"Add Extra Host Here (I)"},null,"Network",null,null,null,"Line Connection",null,null,null,"Transformation Connection",null,null,null,"Total Line"]
[]
[null,"Month",null,"Units Billed","Rate","Amount",null,"Units Billed","Rate","Amount",null,"Units Billed","Rate","Amount",null,"Amount"]
[]
[null,"January",null,{"$f":"'6. Historical Wholesale'!D62","v":0},{"$f":"'5. UTRs and Sub-Transmission'!J51","v":0},{"$f":"D62*E62","v":0},null,{"$f":"'6. Historical Wholesale'!H62","v":0},{"$f":"'5. UTRs and Sub-Transmission'!J53","v":0},{"$f":"H62*I62","v":0},null,{"$f":"'6. Historical Wholesale'!L62","v":0},{"$f":"'5. UTRs and Sub-Transmission'!J55","v":0},{"$f":"L62*M62","v":0},null,{"$f":"J62+N62","v":0}]
[null,"February",null,{"$f":"'6. Historical Wholesale'!D63","v":0},{"$f":"E62","v":0},0,null,{"$f":"'6. Historical Wholesale'!H63","v":0},{"$f":"I62","v":0},0,null,{"$f":"'6. Historical Wholesale'!L63","v":0},{"$f":"M62","v":0},0,null,0]
[null,"March",null,{"$f":"'6. Historical Wholesale'!D64","v":0},0,0,null,{"$f":"'6. Historical Wholesale'!H64","v":0},0,0,null,{"$f":"'6. Historical Wholesale'!L64","v":0},0,0,null,0]
[null,"April",null,{"$f":"'6. Historical Wholesale'!D65","v":0},0,0,null,{"$f":"'6. Historical Wholesale'!H65","v":0},0,0,null,{"$f":"'6. Historical Wholesale'!L65","v":0},0,0,null,0]
[null,"May",null,{"$f":"'6. Historical Wholesale'!D66","v":0},0,0,null,{"$f":"'6. Historical Wholesale'!H66","v":0},0,0,null,{"$f":"'6. Historical Wholesale'!L66","v":0},0,0,null,0]
[null,"June",null,{"$f":"'6. Historical Wholesale'!D67","v":0},0,0,null,{"$f":"'6. Historical Wholesale'!H67","v":0},0,0,null,{"$f":"'6. Historical Wholesale'!L67","v":0},0,0,null,0]
[null,"July",null,{"$f":"'6. Historical Wholesale'!D68","v":0},0,0,null,{"$f":"'6. Historical Wholesale'!H68","v":0},0,0,null,{"$f":"'6. Historical Wholesale'!L68","v":0},0,0,null,0]
[null,"August",null,{"$f":"'6. Historical Wholesale'!D69","v":0},0,0,null,{"$f":"'6. Historical Wholesale'!H69","v":0},0,0,null,{"$f":"'6. Historical Wholesale'!L69","v":0},0,0,null,0]
[null,"September",null,{"$f":"'6. Historical Wholesale'!D70","v":0},0,0,null,{"$f":"'6. Historical Wholesale'!H70","v":0},0,0,null,{"$f":"'6. Historical Wholesale'!L70","v":0},0,0,null,0]
[null,"October",null,{"$f":"'6. Historical Wholesale'!D71","v":0},0,0,null,{"$f":"'6. Historical Wholesale'!H71","v":0},0,0,null,{"$f":"'6. Historical Wholesale'!L71","v":0},0,0,null,0]
[null,"November",null,{"$f":"'6. Historical Wholesale'!D72","v":0},0,0,null,{"$f":"'6. Historical Wholesale'!H72","v":0},0,0,null,{"$f":"'6. Historical Wholesale'!L72","v":0},0,0,null,0]
[null,"December",null,{"$f":"'6. Historical Wholesale'!D73","v":0},0,0,null,{"$f":"'6. Historical Wholesale'!H73","v":0},0,0,null,{"$f":"'6. Historical Wholesale'!L73","v":0},0,0,null,0]
[]
[null,"Total",null,{"$f":"SUM(D62:D73)","v":0},{"$f":"IF(D75<>0,F75/D75,0)","v":0},{"$f":"SUM(F62:F73)","v":0},null,{"$f":"SUM(H62:H73)","v":0},{"$f":"IF(H75<>0,J75/H75,0)","v":0},{"$f":"SUM(J62:J73)","v":0},null,{"$f":"SUM(L62:L73)","v":0},{"$f":"IF(L75<>0,N75/L75,0)","v":0},{"$f":"SUM(N62:N73)","v":0},null,{"$f":"SUM(P62:P73)","v":0}]
[]
[null,{"$f":"'6. Historical Wholesale'!B77","v":"Add Extra Host Here (II)"},null,"Network",null,null,null,"Line Connection",null,null,null,"Transformation Connection",null,null,null,"Total Line"]
[]
[null,"Month",null,"Units Billed","Rate","Amount",null,"Units Billed","Rate","Amount",null,"Units Billed","Rate","Amount",null,"Amount"]
[]
[null,"January",null,{"$f":"'6. Historical Wholesale'!D81","v":0},{"$f":"'5. UTRs and Sub-Transmission'!J66","v":0},{"$f":"D81*E81","v":0},null,{"$f":"'6. Historical Wholesale'!H81","v":0},{"$f":"'5. UTRs and Sub-Transmission'!J68","v":0},{"$f":"H81*I81","v":0},null,{"$f":"'6. Historical Wholesale'!L81","v":0},{"$f":"'5. UTRs and Sub-Transmission'!J70","v":0},{"$f":"L81*M81","v":0},null,{"$f":"J81+N81","v":0}]
[null,"February",null,{"$f":"'6. Historical Wholesale'!D82","v":0},{"$f":"E81","v":0},0,null,{"$f":"'6. Historical Wholesale'!H82","v":0},{"$f":"I81","v":0},0,null,{"$f":"'6. Historical Wholesale'!L82","v":0},{"$f":"M81","v":0},0,null,0]
[null,"March",null,{"$f":"'6. Historical Wholesale'!D83","v":0},0,0,null,{"$f":"'6. Historical Wholesale'!H83","v":0},0,0,null,{"$f":"'6. Historical Wholesale'!L83","v":0},0,0,null,0]
[null,"April",null,{"$f":"'6. Historical Wholesale'!D84","v":0},0,0,null,{"$f":"'6. Historical Wholesale'!H84","v":0},0,0,null,{"$f":"'6. Historical Wholesale'!L84","v":0},0,0,null,0]
[null,"May",null,{"$f":"'6. Historical Wholesale'!D85","v":0},0,0,null,{"$f":"'6. Historical Wholesale'!H85","v":0},0,0,null,{"$f":"'6. Historical Wholesale'!L85","v":0},0,0,null,0]
[null,"June",null,{"$f":"'6. Historical Wholesale'!D86","v":0},0,0,null,{"$f":"'6. Historical Wholesale'!H86","v":0},0,0,null,{"$f":"'6. Historical Wholesale'!L86","v":0},0,0,null,0]
[null,"July",null,{"$f":"'6. Historical Wholesale'!D87","v":0},0,0,null,{"$f":"'6. Historical Wholesale'!H87","v":0},0,0,null,{"$f":"'6. Historical Wholesale'!L87","v":0},0,0,null,0]
[null,"August",null,{"$f":"'6. Historical Wholesale'!D88","v":0},0,0,null,{"$f":"'6. Historical Wholesale'!H88","v":0},0,0,null,{"$f":"'6. Historical Wholesale'!L88","v":0},0,0,null,0]
[null,"September",null,{"$f":"'6. Historical Wholesale'!D89","v":0},0,0,null,{"$f":"'6. Historical Wholesale'!H89","v":0},0,0,null,{"$f":"'6. Historical Wholesale'!L89","v":0},0,0,null,0]
[null,"October",null,{"$f":"'6. Historical Wholesale'!D90","v":0},0,0,null,{"$f":"'6. Historical Wholesale'!H90","v":0},0,0,null,{"$f":"'6. Historical Wholesale'!L90","v":0},0,0,null,0]
[null,"November",null,{"$f":"'6. Historical Wholesale'!D91","v":0},0,0,null,{"$f":"'6. Historical Wholesale'!H91","v":0},0,0,null,{"$f":"'6. Historical Wholesale'!L91","v":0},0,0,null,0]
[null,"December",null,{"$f":"'6. Historical Wholesale'!D92","v":0},0,0,null,{"$f":"'6. Historical Wholesale'!H92","v":0},0,0,null,{"$f":"'6. Historical Wholesale'!L92","v":0},0,0,null,0]
[]
[null,"Total",null,{"$f":"SUM(D81:D92)","v":0},{"$f":"IF(D94<>0,F94/D94,0)","v":0},{"$f":"SUM(F81:F92)","v":0},null,{"$f":"SUM(H81:H92)","v":0},{"$f":"IF(H94<>0,J94/H94,0)","v":0},{"$f":"SUM(J81:J92)","v":0},null,{"$f":"SUM(L81:L92)","v":0},{"$f":"IF(L94<>0,N94/L94,0)","v":0},{"$f":"SUM(N81:N92)","v":0},null,{"$f":"SUM(P81:P92)","v":0}]
[]
[null,"Total",null,"Network",null,null,null,"Line Connection",null,null,null,"Transformation Connection",null,null,null,"Total Line"]
[]
[null,"Month",null,"Units Billed","Rate","Amount",null,"Units Billed","Rate","Amount",null,"Units Billed","Rate","Amount",null,"Amount"]
[]
[null,"January",null,{"$f":"D24+D43+D62+D81","v":185858.99999999997},{"$f":"IF(D100<>0,F100/D100,0)","v":3.66},{"$f":"F24+F43+F62+F81","v":680243.94},null,{"$f":"H24+H43+H62+H81","v":190663.99999999997},{"$f":"IF(H100<>0,J100/H100,0)","v":0.87},{"$f":"J24+J43+J62+J81","v":165877.67999999996},null,{"$f":"L24+L43+L62+L81","v":190663.99999999997},{"$f":"IF(L100<>0,N100/L100,0)","v":2.02},{"$f":"N24+N43+N62+N81","v":385141.27999999997},null,{"$f":"J100+N100","v":551018.96}]
[null,"February",null,{"$f":"D25+D44+D63+D82","v":184535},3.6599999999999997,675398.1,null,{"$f":"H25+H44+H63+H82","v":215113},0.87,{"$f":"J25+J44+J63+J82","v":187148.31},null,{"$f":"L25+L44+L63+L82","v":215113},2.02,{"$f":"N25+N44+N63+N82","v":434528.26},null,621676.57000000007]
[null,"March",null,183297,3.66,670867.02,null,{"$f":"H26+H45+H64+H83","v":216716},0.87000000000000011,{"$f":"J26+J45+J64+J83","v":188542.92},null,{"$f":"L26+L45+L64+L83","v":216716},2.02,{"$f":"N26+N45+N64+N83","v":437766.32},null,626309.24]
[null,"April",null,158716,3.66,580900.56000000006,null,{"$f":"H27+H46+H65+H84","v":233736.60553633218},0.87,{"$f":"J27+J46+J65+J84","v":203350.846816609},null,{"$f":"L27+L46+L65+L84","v":233736.60553633218},2.02,{"$f":"N27+N46+N65+N84","v":472147.94318339101},null,675498.79]
[null,"May",null,175476.99999999997,3.66,642245.81999999995,null,{"$f":"H28+H47+H66+H85","v":249333},0.87,{"$f":"J28+J47+J66+J85","v":216919.71},null,{"$f":"L28+L47+L66+L85","v":249333},2.02,{"$f":"N28+N47+N66+N85","v":503652.66000000003},null,720572.37]
[null,"June",null,194916.99999999997,3.6600000000000006,713396.22,null,{"$f":"H29+H48+H67+H86","v":209985},0.87000000000000011,{"$f":"J29+J48+J67+J86","v":182686.95},null,{"$f":"L29+L48+L67+L86","v":209985},2.02,{"$f":"N29+N48+N67+N86","v":424169.7},null,606856.65]
[null,"July",null,213023.99999999997,3.66,779667.84,null,{"$f":"H30+H49+H68+H87","v":217295},0.87,{"$f":"J30+J49+J68+J87","v":189046.65},null,{"$f":"L30+L49+L68+L87","v":217295},2.02,{"$f":"N30+N49+N68+N87","v":438935.9},null,627982.55000000005]
[null,"August",null,220212.99999999997,3.66,805979.58,null,{"$f":"H31+H50+H69+H88","v":223709},0.87,{"$f":"J31+J50+J69+J88","v":194626.83},null,{"$f":"L31+L50+L69+L88","v":223709},2.02,{"$f":"N31+N50+N69+N88","v":451892.18},null,646519.01]
[null,"September",null,220437.99999999997,3.66,806803.08,null,{"$f":"H32+H51+H70+H89","v":231689.99999999997},0.86999999999999988,{"$f":"J32+J51+J70+J89","v":201570.29999999996},null,{"$f":"L32+L51+L70+L89","v":231689.99999999997},2.02,{"$f":"N32+N51+N70+N89","v":468013.79999999993},null,669584.09999999986]
[null,"October",null,152350,3.66,557601,null,{"$f":"H33+H52+H71+H90","v":152350},0.87,{"$f":"J33+J52+J71+J90","v":132544.5},null,{"$f":"L33+L52+L71+L90","v":152350},2.02,{"$f":"N33+N52+N71+N90","v":307747},null,440291.5]
[null,"November",null,166619.99999999997,3.66,609829.19999999995,null,{"$f":"H34+H53+H72+H91","v":183436},0.87,{"$f":"J34+J53+J72+J91","v":159589.32},null,{"$f":"L34+L53+L72+L91","v":183436},2.02,{"$f":"N34+N53+N72+N91","v":370540.72000000003},null,530130.04]
[null,"December",null,185787.99999999997,3.66,679984.08,null,{"$f":"H35+H54+H73+H92","v":188130.99999999997},0.87,{"$f":"J35+J54+J73+J92","v":163673.96999999997},null,{"$f":"L35+L54+L73+L92","v":188130.99999999997},2.02,{"$f":"N35+N54+N73+N92","v":380024.61999999994},null,543698.58999999985]
[]
[null,"Total",null,{"$f":"SUM(D100:D111)","v":2241234},{"$f":"IF(D113<>0,F113/D113,0)","v":3.66},{"$f":"SUM(F100:F111)","v":8202916.4400000004},null,{"$f":"SUM(H100:H111)","v":2512158.6055363324},{"$f":"IF(H113<>0,J113/H113,0)","v":0.87000000000000011},{"$f":"SUM(J100:J111)","v":2185577.9868166093},null,{"$f":"SUM(L100:L111)","v":2512158.6055363324},{"$f":"IF(L113<>0,N113/L113,0)","v":2.02},{"$f":"SUM(N100:N111)","v":5074560.3831833918},null,{"$f":"SUM(P100:P111)","v":7260138.3699999992}]
[]
[null,null,null,null,null,null,null,null,null,null,null,null,null,"Low Voltage Switchgear Credit (if applicable)",null,{"$f":"'5. UTRs and Sub-Transmission'!J75","v":0}]
[]
[null,null,null,null,null,null,null,null,null,null,null,null,null,"Total including deduction for Low Voltage Switchgear Credit",null,{"$f":"P113+P115","v":7260138.3699999992}]

{"sheet":"9. RTSR Rates to Forecast","index":8,"n_rows":64,"n_cols":10,"rows_kept":64,"cut":false,"hidden":false,"merged":[]}
[]
[]
[]
[]
[]
[]
[]
[]
[]
[]
[]
[]
["The purpose of this sheet is to re-align the current RTS Network Rates to recover current wholesale network costs."]
[]
["Rate Class","Rate Description","Unit","Current RTSR-Network","Loss Adjusted Billed kWh","Billed kW","Billed Amount","Billed Amount %","Current Wholesale Billing","Adjusted RTSR Network"]
[]
["Residential","RTSR - Network","kWh",7.4000000000000003E-3,494671071.84570003,null,{"$f":"ROUND(D17*E17, 2)","v":3660565.93},{"$f":"G17/8034116.64","v":0.45562768055605429},{"$f":"H17*total_current_wholesale_network","v":3737475.7913523265},{"$f":"IF(ISERROR(I17/E17), 0, I17/E17)","v":7.5554767684457127E-3}]
["General Service Less Than 50 kW","RTSR - Network","kWh",6.8999999999999999E-3,136687159.34909999,null,{"$f":"ROUND(D18*E18, 2)","v":943141.4},{"$f":"G18/8034116.64","v":0.11739204722325267},{"$f":"H18*total_current_wholesale_network","v":962957.15409287566},{"$f":"IF(ISERROR(I18/E18), 0, I18/E18)","v":7.0449715882490186E-3}]
["General Service 50 to 999 kW","RTSR - Network","kW",2.4961000000000002,null,406106,{"$f":"ROUND(D19*F19, 2)","v":1013681.19},{"$f":"G19/8034116.64","v":0.12617207783032636},{"$f":"H19*total_current_wholesale_network","v":1034979.0115033437},{"$f":"IF(ISERROR(I19/F19), 0, I19/F19)","v":2.5485440045292207}]
["General Service 50 to 999 kW - Interval Metered","RTSR - Network","kW",3.1993,null,438263,{"$f":"ROUND(D20*F20, 2)","v":1402134.82},{"$f":"G20/8034116.64","v":0.17452258696607623},{"$f":"H20*total_current_wholesale_network","v":1431594.1977753565},{"$f":"IF(ISERROR(I20/F20), 0, I20/F20)","v":3.266518500935184}]
["General Service 1,000 to 4,999 kW - Interval Meters","RTSR - Network","kW",3.1993,null,200065,{"$f":"ROUND(D21*F21, 2)","v":640067.94999999995},{"$f":"G21/8034116.64","v":7.9668740034623139E-2},{"$f":"H21*total_current_wholesale_network","v":653516.0173840964},{"$f":"IF(ISERROR(I21/F21), 0, I21/F21)","v":3.266518468418246}]
["Large Use > 5000 kW","RTSR - Network","kW",3.4089,null,94958,{"$f":"ROUND(D22*F22, 2)","v":323702.33},{"$f":"G22/8034116.64","v":4.0290967197110547E-2},{"$f":"H22*total_current_wholesale_network","v":330503.43720467883},{"$f":"IF(ISERROR(I22/F22), 0, I22/F22)","v":3.4805223067532891}]
["Unmetered Scattered Load","RTSR - Network","kWh",6.8999999999999999E-3,848752.23420000006,null,{"$f":"ROUND(D23*E23, 2)","v":5856.39},{"$f":"G23/8034116.64","v":7.2894012651526557E-4},{"$f":"H23*total_current_wholesale_network","v":5979.4349475677518},{"$f":"IF(ISERROR(I23/E23), 0, I23/E23)","v":7.0449710841747927E-3}]
["Sentinel Lighting","RTSR - Network","kW",1.7217,null,126,{"$f":"ROUND(D24*F24, 2)","v":216.93},{"$f":"G24/8034116.64","v":2.7001101641959732E-5},{"$f":"H24*total_current_wholesale_network","v":221.48778055694248},{"$f":"IF(ISERROR(I24/F24), 0, I24/F24)","v":1.7578395282297021}]
["Street Lighting","RTSR - Network","kW",1.6924999999999999,null,26440,{"$f":"ROUND(D25*F25, 2)","v":44749.7},{"$f":"G25/8034116.64","v":5.5699589643996008E-3},{"$f":"H25*total_current_wholesale_network","v":45689.907959198863},{"$f":"IF(ISERROR(I25/F25), 0, I25/F25)","v":1.7280600589712127}]
[]
["The purpose of this table is to re-align the current RTS Connection Rates to recover current wholesale connection costs."]
["Rate Class","Rate Description","Unit","Current RTSR-Connection","Loss Adjusted Billed kWh","Billed kW","Billed Amount","Billed Amount %","Current Wholesale Billing","Adjusted RTSR-Connection"]
[]
["Residential","RTSR - Connection","kWh",6.1999999999999998E-3,494671071.84570003,null,{"$f":"ROUND(D30*E30, 2)","v":3066960.65},{"$f":"G30/6618959.43","v":0.46335994085402638},{"$f":"H30*Total_Current_Wholesale_Lineplus","v":3364057.285715247},{"$f":"IF(ISERROR(I30/E30), 0, I30/E30)","v":6.8005943285977689E-3}]
["General Service Less Than 50 kW","RTSR - Connection","kWh",5.7000000000000002E-3,136687159.34909999,null,{"$f":"ROUND(D31*E31, 2)","v":779116.81},{"$f":"G31/6618959.43","v":0.11770986334629945},{"$f":"H31*Total_Current_Wholesale_Lineplus","v":854589.89540792513},{"$f":"IF(ISERROR(I31/E31), 0, I31/E31)","v":6.2521593065321983E-3}]
["General Service 50 to 999 kW","RTSR - Connection","kW",2.0068999999999999,null,406106,{"$f":"ROUND(D32*F32, 2)","v":815014.13},{"$f":"G32/6618959.43","v":0.12313327172032539},{"$f":"H32*Total_Current_Wholesale_Lineplus","v":893964.59064037015},{"$f":"IF(ISERROR(I32/F32), 0, I32/F32)","v":2.2013085023131156}]
["General Service 50 to 999 kW - Interval Metered","RTSR - Connection","kW",2.5493999999999999,null,438263,{"$f":"ROUND(D33*F33, 2)","v":1117307.69},{"$f":"G33/6618959.43","v":0.16880413028910196},{"$f":"H33*Total_Current_Wholesale_Lineplus","v":1225541.3433263882},{"$f":"IF(ISERROR(I33/F33), 0, I33/F33)","v":2.7963605034565733}]
["General Service 1,000 to 4,999 kW - Interval Meters","RTSR - Connection","kW",2.5493999999999999,null,200065,{"$f":"ROUND(D34*F34, 2)","v":510045.71},{"$f":"G34/6618959.43","v":7.7058292227665165E-2},{"$f":"H34*Total_Current_Wholesale_Lineplus","v":559453.86412874458},{"$f":"IF(ISERROR(I34/F34), 0, I34/F34)","v":2.7963605034800918}]
["Large Use > 5000 kW","RTSR - Connection","kW",2.7816999999999998,null,94958,{"$f":"ROUND(D35*F35, 2)","v":264144.67},{"$f":"G35/6618959.43","v":3.990728041069138E-2},{"$f":"H35*Total_Current_Wholesale_Lineplus","v":289732.37775200984},{"$f":"IF(ISERROR(I35/F35), 0, I35/F35)","v":3.0511634380674595}]
["Unmetered Scattered Load","RTSR - Connection","kWh",5.7000000000000002E-3,848752.23420000006,null,{"$f":"ROUND(D36*E36, 2)","v":4837.8900000000003},{"$f":"G36/6618959.43","v":7.309139829551728E-4},{"$f":"H36*Total_Current_Wholesale_Lineplus","v":5306.5366528223758},{"$f":"IF(ISERROR(I36/E36), 0, I36/E36)","v":6.2521622200194917E-3}]
["Sentinel Lighting","RTSR - Connection","kW",2.3559000000000001,null,126,{"$f":"ROUND(D37*F37, 2)","v":296.83999999999997},{"$f":"G37/6618959.43","v":4.4846928454432298E-5},{"$f":"H37*Total_Current_Wholesale_Lineplus","v":325.59490604866869},{"$f":"IF(ISERROR(I37/F37), 0, I37/F37)","v":2.5840865559418149}]
["Street Lighting","RTSR - Connection","kW",2.3159999999999998,null,26440,{"$f":"ROUND(D38*F38, 2)","v":61235.040000000001},{"$f":"G38/6618959.43","v":9.2514602404807304E-3},{"$f":"H38*Total_Current_Wholesale_Lineplus","v":67166.881470443564},{"$f":"IF(ISERROR(I38/F38), 0, I38/F38)","v":2.5403510389729034}]
[]
["The purpose of this table is to update the re-aligned RTS Network Rates to recover future wholesale network costs."]
["Rate Class","Rate Description","Unit","Adjusted RTSR-Network","Loss Adjusted Billed kWh","Billed kW","Billed Amount","Billed Amount %","Current Wholesale Billing","Proposed RTSR-Network"]
[]
["Residential","RTSR - Network","kWh",7.5554767684457127E-3,494671071.84570003,null,{"$f":"IF(ISERROR(D43*E43), 0, ROUND(D43*E43, 2))","v":3737475.79},{"$f":"G43/8202916.44","v":0.45562768039119511},{"$f":"H43*forecast_wholesale_network","v":3737475.79},{"$f":"IF(ISERROR(I43/E43), 0, I43/E43)","v":7.5554767657119229E-3}]
["General Service Less Than 50 kW","RTSR - Network","kWh",7.0449715882490186E-3,136687159.34909999,null,{"$f":"IF(ISERROR(D44*E44), 0, ROUND(D44*E44, 2))","v":962957.15},{"$f":"G44/8202916.44","v":0.11739204672429894},{"$f":"H44*forecast_wholesale_network","v":962957.15},{"$f":"IF(ISERROR(I44/E44), 0, I44/E44)","v":7.0449715583056375E-3}]
["General Service 50 to 999 kW","RTSR - Network","kW",2.5485440045292207,null,406106,{"$f":"ROUND(D45*F45, 2)","v":1034979.01},{"$f":"G45/8202916.44","v":0.12617207764705696},{"$f":"H45*forecast_wholesale_network","v":1034979.0100000001},{"$f":"IF(ISERROR(I45/F45), 0, I45/F45)","v":2.5485440008273703}]
["General Service 50 to 999 kW - Interval Metered","RTSR - Network","kW",3.266518500935184,null,438263,{"$f":"ROUND(D46*F46, 2)","v":1431594.2},{"$f":"G46/8202916.44","v":0.17452258723727776},{"$f":"H46*forecast_wholesale_network","v":1431594.2},{"$f":"IF(ISERROR(I46/F46), 0, I46/F46)","v":3.2665185060112307}]
["General Service 1,000 to 4,999 kW - Interval Meters","RTSR - Network","kW",3.266518468418246,null,200065,{"$f":"ROUND(D47*F47, 2)","v":653516.02},{"$f":"G47/8202916.44","v":7.9668740353522366E-2},{"$f":"H47*forecast_wholesale_network","v":653516.02},{"$f":"IF(ISERROR(I47/F47), 0, I47/F47)","v":3.2665184814935149}]
["Large Use > 5000 kW","RTSR - Network","kW",3.4805223067532891,null,94958,{"$f":"ROUND(D48*F48, 2)","v":330503.44},{"$f":"G48/8202916.44","v":4.0290967537882173E-2},{"$f":"H48*forecast_wholesale_network","v":330503.44},{"$f":"IF(ISERROR(I48/F48), 0, I48/F48)","v":3.4805223361907371}]
["Unmetered Scattered Load","RTSR - Network","kWh",7.0449710841747927E-3,848752.23420000006,null,{"$f":"IF(ISERROR(D49*E49), 0, ROUND(D49*E49, 2))","v":5979.43},{"$f":"G49/8202916.44","v":7.2893952336786202E-4},{"$f":"H49*forecast_wholesale_network","v":5979.43},{"$f":"IF(ISERROR(I49/E49), 0, I49/E49)","v":7.044965254949782E-3}]
["Sentinel Lighting","RTSR - Network","kW",1.7578395282297021,null,126,{"$f":"ROUND(D50*F50, 2)","v":221.49},{"$f":"G50/8202916.44","v":2.7001372209516255E-5},{"$f":"H50*forecast_wholesale_network","v":221.49},{"$f":"IF(ISERROR(I50/F50), 0, I50/F50)","v":1.757857142857143}]
["Street Lighting","RTSR - Network","kW",1.7280600589712127,null,26440,{"$f":"ROUND(D51*F51, 2)","v":45689.91},{"$f":"G51/8202916.44","v":5.5699592131893032E-3},{"$f":"H51*forecast_wholesale_network","v":45689.91},{"$f":"IF(ISERROR(I51/F51), 0, I51/F51)","v":1.7280601361573376}]
[]
["The purpose of this table is to update the re-aligned RTS Connection Rates to recover future wholesale connection costs."]
["Rate Class","Rate Description","Unit","Adjusted RTSR-Connection","Loss Adjusted Billed kWh","Billed kW","Billed Amount","Billed Amount %","Current Wholesale Billing","Proposed RTSR-Connection"]
[]
["Residential","RTSR - Connection","kWh",6.8005943285977689E-3,494671071.84570003,null,{"$f":"ROUND(D56*E56, 2)","v":3364057.29},{"$f":"G56/7260138.37","v":0.46335994144420145},{"$f":"H56*forecast_wholesale_lineplus","v":3364057.2899999996},{"$f":"IF(ISERROR(I56/E56), 0, I56/E56)","v":6.8005943372595901E-3}]
["General Service Less Than 50 kW","RTSR - Connection","kWh",6.2521593065321983E-3,136687159.34909999,null,{"$f":"ROUND(D57*E57, 2)","v":854589.9},{"$f":"G57/7260138.37","v":0.11770986397880458},{"$f":"H57*forecast_wholesale_lineplus","v":854589.89999999991},{"$f":"IF(ISERROR(I57/E57), 0, I57/E57)","v":6.2521593401277083E-3}]
["General Service 50 to 999 kW","RTSR - Connection","kW",2.2013085023131156,null,406106,{"$f":"ROUND(D58*F58, 2)","v":893964.59},{"$f":"G58/7260138.37","v":0.12313327163212179},{"$f":"H58*forecast_wholesale_lineplus","v":893964.58999999985},{"$f":"IF(ISERROR(I58/F58), 0, I58/F58)","v":2.2013085007362605}]
["General Service 50 to 999 kW - Interval Metered","RTSR - Connection","kW",2.7963605034565733,null,438263,{"$f":"ROUND(D59*F59, 2)","v":1225541.3400000001},{"$f":"G59/7260138.37","v":0.16880412983093049},{"$f":"H59*forecast_wholesale_lineplus","v":1225541.3399999999},{"$f":"IF(ISERROR(I59/F59), 0, I59/F59)","v":2.7963604958666366}]
["General Service 1,000 to 4,999 kW - Interval Meters","RTSR - Connection","kW",2.7963605034800918,null,200065,{"$f":"ROUND(D60*F60, 2)","v":559453.86},{"$f":"G60/7260138.37","v":7.7058291658978387E-2},{"$f":"H60*forecast_wholesale_lineplus","v":559453.85999999987},{"$f":"IF(ISERROR(I60/F60), 0, I60/F60)","v":2.7963604828430753}]
["Large Use > 5000 kW","RTSR - Connection","kW",3.0511634380674595,null,94958,{"$f":"ROUND(D61*F61, 2)","v":289732.38},{"$f":"G61/7260138.37","v":3.9907280720325997E-2},{"$f":"H61*forecast_wholesale_lineplus","v":289732.37999999995},{"$f":"IF(ISERROR(I61/F61), 0, I61/F61)","v":3.0511634617409795}]
["Unmetered Scattered Load","RTSR - Connection","kWh",6.2521622200194917E-3,848752.23420000006,null,{"$f":"ROUND(D62*E62, 2)","v":5306.54},{"$f":"G62/7260138.37","v":7.3091444399013572E-4},{"$f":"H62*forecast_wholesale_lineplus","v":5306.54},{"$f":"IF(ISERROR(I62/E62), 0, I62/E62)","v":6.2521661636646322E-3}]
["Sentinel Lighting","RTSR - Connection","kW",2.5840865559418149,null,126,{"$f":"ROUND(D63*F63, 2)","v":325.58999999999997},{"$f":"G63/7260138.37","v":4.4846252703032156E-5},{"$f":"H63*forecast_wholesale_lineplus","v":325.58999999999992},{"$f":"IF(ISERROR(I63/F63), 0, I63/F63)","v":2.5840476190476185}]
["Street Lighting","RTSR - Connection","kW",2.5403510389729034,null,26440,{"$f":"ROUND(D64*F64, 2)","v":67166.880000000005},{"$f":"G64/7260138.37","v":9.2514600379441526E-3},{"$f":"H64*forecast_wholesale_lineplus","v":67166.87999999999},{"$f":"IF(ISERROR(I64/F64), 0, I64/F64)","v":2.5403509833585471}]

{"sheet":"hidden1","index":9,"n_rows":22,"n_cols":2,"rows_kept":22,"cut":false,"hidden":true,"merged":[]}
[{"$f":"IF('3. Rate Classes'!L17=1, '3. Rate Classes'!C17, \"\")","v":"Residential"},1]
[{"$f":"IF('3. Rate Classes'!L18=1, '3. Rate Classes'!C18, \"\")","v":"General Service Less Than 50 kW"},2]
[{"$f":"IF('3. Rate Classes'!L19=1, '3. Rate Classes'!C19, \"\")","v":"General Service 50 to 999 kW"},3]
[{"$f":"IF('3. Rate Classes'!L20=1, '3. Rate Classes'!C20, \"\")","v":"General Service 50 to 999 kW - Interval Metered"},4]
[{"$f":"IF('3. Rate Classes'!L21=1, '3. Rate Classes'!C21, \"\")","v":"General Service 1,000 to 4,999 kW - Interval Meters"},5]
[{"$f":"IF('3. Rate Classes'!L22=1, '3. Rate Classes'!C22, \"\")","v":"Large Use > 5000 kW"},6]
[{"$f":"IF('3. Rate Classes'!L23=1, '3. Rate Classes'!C23, \"\")","v":"Unmetered Scattered Load"},7]
[{"$f":"IF('3. Rate Classes'!L24=1, '3. Rate Classes'!C24, \"\")","v":"Sentinel Lighting"},8]
[{"$f":"IF('3. Rate Classes'!L25=1, '3. Rate Classes'!C25, \"\")","v":"Street Lighting"},9]
[{"$f":"IF('3. Rate Classes'!L26=1, '3. Rate Classes'!C26, \"\")","v":""},10]
[{"$f":"IF('3. Rate Classes'!L27=1, '3. Rate Classes'!C27, \"\")","v":""},11]
[{"$f":"IF('3. Rate Classes'!L28=1, '3. Rate Classes'!C28, \"\")","v":""},12]
[{"$f":"IF('3. Rate Classes'!L29=1, '3. Rate Classes'!C29, \"\")","v":""},13]
[{"$f":"IF('3. Rate Classes'!L30=1, '3. Rate Classes'!C30, \"\")","v":""},14]
[{"$f":"IF('3. Rate Classes'!L31=1, '3. Rate Classes'!C31, \"\")","v":""},15]
[{"$f":"IF('3. Rate Classes'!L32=1, '3. Rate Classes'!C32, \"\")","v":""},16]
[{"$f":"IF('3. Rate Classes'!L33=1, '3. Rate Classes'!C33, \"\")","v":""},17]
[{"$f":"IF('3. Rate Classes'!L34=1, '3. Rate Classes'!C34, \"\")","v":""},18]
[{"$f":"IF('3. Rate Classes'!L35=1, '3. Rate Classes'!C35, \"\")","v":""},19]
[{"$f":"IF('3. Rate Classes'!L36=1, '3. Rate Classes'!C36, \"\")","v":""},20]
[{"$f":"IF('3. Rate Classes'!L37=1, '3. Rate Classes'!C37, \"\")","v":""},21]
[{"$f":"IF('3. Rate Classes'!L38=1, '3. Rate Classes'!C38, \"\")","v":""},22]